Workbook

Sheet Tool
B1: =[0]!Title_Model -> RAE: ALLOWED REVENUE MODEL
B2: =Title_Project -> 
H4: =IF(H11<>"",H10&": "&H11,"") -> 1: Project A | I4: =J164 ->  | L4: =IF(L11<>"",L10&": "&L11,"") -> 2: Project B | M4: =N164 ->  | P4: =IF(P11<>"",P10&": "&P11,"") -> 3: Project C | Q4: =R164 ->  | T4: Annex: Answer options
C6: Question | E6: Overall importance {weight} | H6: Answer | I6: Score (1-5) | J6: Weighted score | L6: Answer | M6: Score (1-5) | N6: Weighted score | P6: Answer | Q6: Score (1-5) | R6: Weighted score | T6: 1 | U6: 2 | V6: 3 | W6: 4 | X6: 5
C8: Project details
C10: No. | H10: =IF(H11<>"",MAX(G10:$G10)+1,"") -> 1 | L10: =IF(L11<>"",MAX($G10:K10)+1,"") -> 2 | P10: =IF(P11<>"",MAX($G10:O10)+1,"") -> 3
C11: Title | H11: Project A | L11: Project B | P11: Project C
C12: Description | H12: Sector etc.
B14: A | C14: How supportive is the PPP environment?
B16: I | C16: Public sector capacity and experience
B18: =IF(C18<>"",MAX(B$14:B17)+1,"") -> 1 | C18: Does the sponsoring entity have the capabilities to procure PPPs? | E18: High | F18: =IFERROR(INDEX($F$202:$F$205,MATCH($E18,$C$202:$C$205,0),1),0) -> {75%} | I18: =INDEX($T$6:$X$6,1,MATCH(H18,$T18:$X18,0)) ->  | J18: =I18*INDEX($F$202:$F$205,MATCH($E18,$C$202:$C$205,0),1) ->  | M18: =INDEX($T$6:$X$6,1,MATCH(L18,$T18:$X18,0)) ->  | N18: =M18*INDEX($F$202:$F$205,MATCH($E18,$C$202:$C$205,0),1) ->  | Q18: =INDEX($T$6:$X$6,1,MATCH(P18,$T18:$X18,0)) ->  | R18: =Q18*INDEX($F$202:$F$205,MATCH($E18,$C$202:$C$205,0),1) ->  | T18: No capabilities | U18: Very little capability | V18: Some capabilities | W18: Good capability | X18: Full set of capabilities
B20: =IF(C20<>"",MAX(B$14:B19)+1,"") -> 2 | C20: Does the sponsoring entity have the capabilities to manage and monitor a PPP contract? | E20: High | F20: =IFERROR(INDEX($F$202:$F$205,MATCH($E20,$C$202:$C$205,0),1),0) -> {75%} | I20: =INDEX($T$6:$X$6,1,MATCH(H20,$T20:$X20,0)) ->  | J20: =I20*INDEX($F$202:$F$205,MATCH($E20,$C$202:$C$205,0),1) ->  | M20: =INDEX($T$6:$X$6,1,MATCH(L20,$T20:$X20,0)) ->  | N20: =M20*INDEX($F$202:$F$205,MATCH($E20,$C$202:$C$205,0),1) ->  | Q20: =INDEX($T$6:$X$6,1,MATCH(P20,$T20:$X20,0)) ->  | R20: =Q20*INDEX($F$202:$F$205,MATCH($E20,$C$202:$C$205,0),1) ->  | T20: No capabilities | U20: Very little capability | V20: Some capabilities | W20: Good capability | X20: Full set of capabilities
B22: =IF(C22<>"",MAX(B$14:B21)+1,"") -> 3 | C22: Does the sponsoring entity have previous experience with PPPs? | E22: High | F22: =IFERROR(INDEX($F$202:$F$205,MATCH($E22,$C$202:$C$205,0),1),0) -> {75%} | I22: =INDEX($T$6:$X$6,1,MATCH(H22,$T22:$X22,0)) ->  | J22: =I22*INDEX($F$202:$F$205,MATCH($E22,$C$202:$C$205,0),1) ->  | M22: =INDEX($T$6:$X$6,1,MATCH(L22,$T22:$X22,0)) ->  | N22: =M22*INDEX($F$202:$F$205,MATCH($E22,$C$202:$C$205,0),1) ->  | Q22: =INDEX($T$6:$X$6,1,MATCH(P22,$T22:$X22,0)) ->  | R22: =Q22*INDEX($F$202:$F$205,MATCH($E22,$C$202:$C$205,0),1) ->  | T22: No previous PPP experience | U22: Some experience with dissimilar PPPs | V22: Limited experience (1 project), for a similar PPP | W22: Significant experience (2-4 projects), including similar PPPs | X22: Extensive experience (5+ projects), including similar PPPs
C24: Sub-total | E24: (Max score: | F24: =SUM(F17:F23)*$X$6 -> 11.25) | J24: =SUM(J17:J23) ->  | N24: =SUM(N17:N23) ->  | R24: =SUM(R17:R23) -> 
B26: II | C26: Public sector funding
B28: =IF(C28<>"",MAX(B$14:B27)+1,"") -> 4 | C28: Is funding assistance available for project preparation? | E28: Low | F28: =IFERROR(INDEX($F$202:$F$205,MATCH($E28,$C$202:$C$205,0),1),0) -> {25%} | I28: =INDEX($T$6:$X$6,1,MATCH(H28,$T28:$X28,0)) ->  | J28: =I28*INDEX($F$202:$F$205,MATCH($E28,$C$202:$C$205,0),1) ->  | M28: =INDEX($T$6:$X$6,1,MATCH(L28,$T28:$X28,0)) ->  | N28: =M28*INDEX($F$202:$F$205,MATCH($E28,$C$202:$C$205,0),1) ->  | Q28: =INDEX($T$6:$X$6,1,MATCH(P28,$T28:$X28,0)) ->  | R28: =Q28*INDEX($F$202:$F$205,MATCH($E28,$C$202:$C$205,0),1) ->  | T28: Not at all | U28: Unlikely | V28: Possible | W28: Likely | X28: Guaranteed
B30: =IF(C30<>"",MAX(B$14:B29)+1,"") -> 5 | C30: Is viability gap funding available for the PPP project? | E30: High | F30: =IFERROR(INDEX($F$202:$F$205,MATCH($E30,$C$202:$C$205,0),1),0) -> {75%} | I30: =INDEX($T$6:$X$6,1,MATCH(H30,$T30:$X30,0)) ->  | J30: =I30*INDEX($F$202:$F$205,MATCH($E30,$C$202:$C$205,0),1) ->  | M30: =INDEX($T$6:$X$6,1,MATCH(L30,$T30:$X30,0)) ->  | N30: =M30*INDEX($F$202:$F$205,MATCH($E30,$C$202:$C$205,0),1) ->  | Q30: =INDEX($T$6:$X$6,1,MATCH(P30,$T30:$X30,0)) ->  | R30: =Q30*INDEX($F$202:$F$205,MATCH($E30,$C$202:$C$205,0),1) ->  | T30: Not at all | U30: Unlikely | V30: Possible | W30: Likely | X30: Guaranteed
B32: =IF(C32<>"",MAX(B$14:B31)+1,"") -> 6 | C32: Is the PPP project eligible for significant funding from other sources? | E32: Medium | F32: =IFERROR(INDEX($F$202:$F$205,MATCH($E32,$C$202:$C$205,0),1),0) -> {50%} | I32: =INDEX($T$6:$X$6,1,MATCH(H32,$T32:$X32,0)) ->  | J32: =I32*INDEX($F$202:$F$205,MATCH($E32,$C$202:$C$205,0),1) ->  | M32: =INDEX($T$6:$X$6,1,MATCH(L32,$T32:$X32,0)) ->  | N32: =M32*INDEX($F$202:$F$205,MATCH($E32,$C$202:$C$205,0),1) ->  | Q32: =INDEX($T$6:$X$6,1,MATCH(P32,$T32:$X32,0)) ->  | R32: =Q32*INDEX($F$202:$F$205,MATCH($E32,$C$202:$C$205,0),1) ->  | T32: Not at all | U32: Unlikely | V32: Possible | W32: Likely | X32: Guaranteed
C34: Sub-total | E34: (Max score: | F34: =SUM(F27:F33)*$X$6 -> 7.50) | J34: =SUM(J27:J33) ->  | N34: =SUM(N27:N33) ->  | R34: =SUM(R27:R33) -> 
B36: III | C36: Private sector capability and appetite
B38: =IF(C38<>"",MAX(B$14:B37)+1,"") -> 7 | C38: Are multiple firms active in the project sector and likely to be interested? | E38: Very high | F38: =IFERROR(INDEX($F$202:$F$205,MATCH($E38,$C$202:$C$205,0),1),0) -> {100%} | I38: =INDEX($T$6:$X$6,1,MATCH(H38,$T38:$X38,0)) ->  | J38: =I38*INDEX($F$202:$F$205,MATCH($E38,$C$202:$C$205,0),1) ->  | M38: =INDEX($T$6:$X$6,1,MATCH(L38,$T38:$X38,0)) ->  | N38: =M38*INDEX($F$202:$F$205,MATCH($E38,$C$202:$C$205,0),1) ->  | Q38: =INDEX($T$6:$X$6,1,MATCH(P38,$T38:$X38,0)) ->  | R38: =Q38*INDEX($F$202:$F$205,MATCH($E38,$C$202:$C$205,0),1) ->  | T38: No interest expected | U38: Extent of interest among qualified firms is not yet known | V38: Some interest expected | W38: 5+ qualified firms are expected to be interested | X38: 5+ qualified firms have competed for similar opportunities
B40: =IF(C40<>"",MAX(B$14:B39)+1,"") -> 8 | C40: Have similar PPP projects been successfully financed in Afghanistan? | E40: Very high | F40: =IFERROR(INDEX($F$202:$F$205,MATCH($E40,$C$202:$C$205,0),1),0) -> {100%} | I40: =INDEX($T$6:$X$6,1,MATCH(H40,$T40:$X40,0)) ->  | J40: =I40*INDEX($F$202:$F$205,MATCH($E40,$C$202:$C$205,0),1) ->  | M40: =INDEX($T$6:$X$6,1,MATCH(L40,$T40:$X40,0)) ->  | N40: =M40*INDEX($F$202:$F$205,MATCH($E40,$C$202:$C$205,0),1) ->  | Q40: =INDEX($T$6:$X$6,1,MATCH(P40,$T40:$X40,0)) ->  | R40: =Q40*INDEX($F$202:$F$205,MATCH($E40,$C$202:$C$205,0),1) ->  | T40: No PPP projects recently financed | U40: No similar PPP projects recently financed | V40: Dissimilar PPP projects financed in last 2 years | W40: At least one similar PPP project successfully financed in last 2 years | X40: Multiple similar PPP projects successfully financed in last 2 years
B42: =IF(C42<>"",MAX(B$14:B41)+1,"") -> 9 | C42: Have similar PPP projects been successfully financed in countries similar to Afghanistan? | E42: High | F42: =IFERROR(INDEX($F$202:$F$205,MATCH($E42,$C$202:$C$205,0),1),0) -> {75%} | I42: =INDEX($T$6:$X$6,1,MATCH(H42,$T42:$X42,0)) ->  | J42: =I42*INDEX($F$202:$F$205,MATCH($E42,$C$202:$C$205,0),1) ->  | M42: =INDEX($T$6:$X$6,1,MATCH(L42,$T42:$X42,0)) ->  | N42: =M42*INDEX($F$202:$F$205,MATCH($E42,$C$202:$C$205,0),1) ->  | Q42: =INDEX($T$6:$X$6,1,MATCH(P42,$T42:$X42,0)) ->  | R42: =Q42*INDEX($F$202:$F$205,MATCH($E42,$C$202:$C$205,0),1) ->  | T42: No PPP projects recently financed | U42: No similar PPP projects recently financed | V42: Somewhat similar PPP projects financed in last 2 years | W42: At least one very similar PPP project successfully financed in last 2 years | X42: Multiple very similar PPP projects successfully financed in last 2 years
C44: Sub-total | E44: (Max score: | F44: =SUM(F37:F43)*$X$6 -> 13.75) | J44: =SUM(J37:J43) ->  | N44: =SUM(N37:N43) ->  | R44: =SUM(R37:R43) -> 
B46: B | C46: How suitable is the project for PPP?
B48: IV | C48: Key project characteristics
B50: =IF(C50<>"",MAX(B$14:B49)+1,"") -> 10 | C50: What is the project value? | E50: High | F50: =IFERROR(INDEX($F$202:$F$205,MATCH($E50,$C$202:$C$205,0),1),0) -> {75%} | I50: =INDEX($T$6:$X$6,1,MATCH(H50,$T50:$X50,0)) ->  | J50: =I50*INDEX($F$202:$F$205,MATCH($E50,$C$202:$C$205,0),1) ->  | M50: =INDEX($T$6:$X$6,1,MATCH(L50,$T50:$X50,0)) ->  | N50: =M50*INDEX($F$202:$F$205,MATCH($E50,$C$202:$C$205,0),1) ->  | Q50: =INDEX($T$6:$X$6,1,MATCH(P50,$T50:$X50,0)) ->  | R50: =Q50*INDEX($F$202:$F$205,MATCH($E50,$C$202:$C$205,0),1) ->  | T50: Project is less than USD 5m | U50: Project is between USD 5m and 20m | V50: Project is between USD 20m and 100m | W50: Project is between USD 100m and 300m | X50: Project is greater than USD 300m
B52: =IF(C52<>"",MAX(B$14:B51)+1,"") -> 11 | C52: What is the expected project duration (including construction)? | E52: High | F52: =IFERROR(INDEX($F$202:$F$205,MATCH($E52,$C$202:$C$205,0),1),0) -> {75%} | I52: =INDEX($T$6:$X$6,1,MATCH(H52,$T52:$X52,0)) ->  | J52: =I52*INDEX($F$202:$F$205,MATCH($E52,$C$202:$C$205,0),1) ->  | M52: =INDEX($T$6:$X$6,1,MATCH(L52,$T52:$X52,0)) ->  | N52: =M52*INDEX($F$202:$F$205,MATCH($E52,$C$202:$C$205,0),1) ->  | Q52: =INDEX($T$6:$X$6,1,MATCH(P52,$T52:$X52,0)) ->  | R52: =Q52*INDEX($F$202:$F$205,MATCH($E52,$C$202:$C$205,0),1) ->  | T52: Less than five years | U52: 5 to 10 years | V52: 10 to 15 years | W52: 15 to 20 years | X52: > 20 years
B54: =IF(C54<>"",MAX(B$14:B53)+1,"") -> 12 | C54: Are outputs easily definable, measurable and verifiable? | E54: Very high | F54: =IFERROR(INDEX($F$202:$F$205,MATCH($E54,$C$202:$C$205,0),1),0) -> {100%} | I54: =INDEX($T$6:$X$6,1,MATCH(H54,$T54:$X54,0)) ->  | J54: =I54*INDEX($F$202:$F$205,MATCH($E54,$C$202:$C$205,0),1) ->  | M54: =INDEX($T$6:$X$6,1,MATCH(L54,$T54:$X54,0)) ->  | N54: =M54*INDEX($F$202:$F$205,MATCH($E54,$C$202:$C$205,0),1) ->  | Q54: =INDEX($T$6:$X$6,1,MATCH(P54,$T54:$X54,0)) ->  | R54: =Q54*INDEX($F$202:$F$205,MATCH($E54,$C$202:$C$205,0),1) ->  | T54: No ability to define, measure or verify outputs | U54: Multiple outputs, difficult to define and/or measure and/or verify | V54: Few outputs, difficult to define and/or measure and/or verify | W54: Multiple outputs, each easily definable, measureable and verifiable | X54: Few outputs, each easily definable, measureable and verifiable
B56: =IF(C56<>"",MAX(B$14:B55)+1,"") -> 13 | C56: How complex is the project? | E56: High | F56: =IFERROR(INDEX($F$202:$F$205,MATCH($E56,$C$202:$C$205,0),1),0) -> {75%} | I56: =INDEX($T$6:$X$6,1,MATCH(H56,$T56:$X56,0)) ->  | J56: =I56*INDEX($F$202:$F$205,MATCH($E56,$C$202:$C$205,0),1) ->  | M56: =INDEX($T$6:$X$6,1,MATCH(L56,$T56:$X56,0)) ->  | N56: =M56*INDEX($F$202:$F$205,MATCH($E56,$C$202:$C$205,0),1) ->  | Q56: =INDEX($T$6:$X$6,1,MATCH(P56,$T56:$X56,0)) ->  | R56: =Q56*INDEX($F$202:$F$205,MATCH($E56,$C$202:$C$205,0),1) ->  | T56: Very complex | U56: Challenging | V56: Middle | W56: Fairly simple | X56: Straight forward
B58: =IF(C58<>"",MAX(B$14:B57)+1,"") -> 14 | C58: Are operational (non-construction) costs are a large part of the total costs of the project? | E58: High | F58: =IFERROR(INDEX($F$202:$F$205,MATCH($E58,$C$202:$C$205,0),1),0) -> {75%} | I58: =INDEX($T$6:$X$6,1,MATCH(H58,$T58:$X58,0)) ->  | J58: =I58*INDEX($F$202:$F$205,MATCH($E58,$C$202:$C$205,0),1) ->  | M58: =INDEX($T$6:$X$6,1,MATCH(L58,$T58:$X58,0)) ->  | N58: =M58*INDEX($F$202:$F$205,MATCH($E58,$C$202:$C$205,0),1) ->  | Q58: =INDEX($T$6:$X$6,1,MATCH(P58,$T58:$X58,0)) ->  | R58: =Q58*INDEX($F$202:$F$205,MATCH($E58,$C$202:$C$205,0),1) ->  | T58: Operational costs are almost non-existent relative to construction costs | U58: Operational costs are significantly lower than construction costs | V58: Operational costs are similar to construction costs | W58: Operational costs are higher than construction costs | X58: Operational costs greatly exceed construction costs
B60: =IF(C60<>"",MAX(B$14:B59)+1,"") -> 15 | C60: Are there fixed time constraints on project award? | E60: Medium | F60: =IFERROR(INDEX($F$202:$F$205,MATCH($E60,$C$202:$C$205,0),1),0) -> {50%} | I60: =INDEX($T$6:$X$6,1,MATCH(H60,$T60:$X60,0)) ->  | J60: =I60*INDEX($F$202:$F$205,MATCH($E60,$C$202:$C$205,0),1) ->  | M60: =INDEX($T$6:$X$6,1,MATCH(L60,$T60:$X60,0)) ->  | N60: =M60*INDEX($F$202:$F$205,MATCH($E60,$C$202:$C$205,0),1) ->  | Q60: =INDEX($T$6:$X$6,1,MATCH(P60,$T60:$X60,0)) ->  | R60: =Q60*INDEX($F$202:$F$205,MATCH($E60,$C$202:$C$205,0),1) ->  | T60: Project must be awarded within 6 months | U60: Project must be awarded with 1 year | V60: Project must be awarded within 2 years | W60: Project must be awarded within 3 years | X60: No time constraints
B62: =IF(C62<>"",MAX(B$14:B61)+1,"") -> 16 | C62: How secure is the project location? | E62: Very high | F62: =IFERROR(INDEX($F$202:$F$205,MATCH($E62,$C$202:$C$205,0),1),0) -> {100%} | I62: =INDEX($T$6:$X$6,1,MATCH(H62,$T62:$X62,0)) ->  | J62: =I62*INDEX($F$202:$F$205,MATCH($E62,$C$202:$C$205,0),1) ->  | M62: =INDEX($T$6:$X$6,1,MATCH(L62,$T62:$X62,0)) ->  | N62: =M62*INDEX($F$202:$F$205,MATCH($E62,$C$202:$C$205,0),1) ->  | Q62: =INDEX($T$6:$X$6,1,MATCH(P62,$T62:$X62,0)) ->  | R62: =Q62*INDEX($F$202:$F$205,MATCH($E62,$C$202:$C$205,0),1) ->  | T62: Extreme security issues | U62: Serious security issues likely | V62: Some security issues likely | W62: Low risk of security issues | X62: No known security issues
B64: =IF(C64<>"",MAX(B$14:B63)+1,"") -> 17 | C64: Are staff and/or resources to be sourced locally or abroad? | E64: Medium | F64: =IFERROR(INDEX($F$202:$F$205,MATCH($E64,$C$202:$C$205,0),1),0) -> {50%} | I64: =INDEX($T$6:$X$6,1,MATCH(H64,$T64:$X64,0)) ->  | J64: =I64*INDEX($F$202:$F$205,MATCH($E64,$C$202:$C$205,0),1) ->  | M64: =INDEX($T$6:$X$6,1,MATCH(L64,$T64:$X64,0)) ->  | N64: =M64*INDEX($F$202:$F$205,MATCH($E64,$C$202:$C$205,0),1) ->  | Q64: =INDEX($T$6:$X$6,1,MATCH(P64,$T64:$X64,0)) ->  | R64: =Q64*INDEX($F$202:$F$205,MATCH($E64,$C$202:$C$205,0),1) ->  | T64: All foreign resources with prior capacity building required | U64: Local resources with prior capacity building required | V64: Foreign staff ready with local leadership | W64: Local staff ready with foreign leadership | X64: All local experts ready to go
B66: =IF(C66<>"",MAX(B$14:B65)+1,"") -> 18 | C66: Does the project require the development of new/advanced technology? | E66: Medium | F66: =IFERROR(INDEX($F$202:$F$205,MATCH($E66,$C$202:$C$205,0),1),0) -> {50%} | I66: =INDEX($T$6:$X$6,1,MATCH(H66,$T66:$X66,0)) ->  | J66: =I66*INDEX($F$202:$F$205,MATCH($E66,$C$202:$C$205,0),1) ->  | M66: =INDEX($T$6:$X$6,1,MATCH(L66,$T66:$X66,0)) ->  | N66: =M66*INDEX($F$202:$F$205,MATCH($E66,$C$202:$C$205,0),1) ->  | Q66: =INDEX($T$6:$X$6,1,MATCH(P66,$T66:$X66,0)) ->  | R66: =Q66*INDEX($F$202:$F$205,MATCH($E66,$C$202:$C$205,0),1) ->  | T66: Requires the development of new technologies | U66: Requires advanced technology | V66: Some advanced technology required | W66: Low amounts of easily implemented advanced technology required | X66: No new/advanced technology required
B68: =IF(C68<>"",MAX(B$14:B67)+1,"") -> 19 | C68: Is the project reliant on other projects yet to be constructed? | E68: Medium | F68: =IFERROR(INDEX($F$202:$F$205,MATCH($E68,$C$202:$C$205,0),1),0) -> {50%} | I68: =INDEX($T$6:$X$6,1,MATCH(H68,$T68:$X68,0)) ->  | J68: =I68*INDEX($F$202:$F$205,MATCH($E68,$C$202:$C$205,0),1) ->  | M68: =INDEX($T$6:$X$6,1,MATCH(L68,$T68:$X68,0)) ->  | N68: =M68*INDEX($F$202:$F$205,MATCH($E68,$C$202:$C$205,0),1) ->  | Q68: =INDEX($T$6:$X$6,1,MATCH(P68,$T68:$X68,0)) ->  | R68: =Q68*INDEX($F$202:$F$205,MATCH($E68,$C$202:$C$205,0),1) ->  | T68: Very reliant on projects that are likely to cause delays | U68: Reliant on projects that are due to be completed around the time of this PPP | V68: Reliant on projects that are likely to be completed well ahead of this PPP | W68: Minimal reliance on other projects | X68: Not at all reliant
B70: =IF(C70<>"",MAX(B$14:B69)+1,"") -> 20 | C70: Does operation of the project rely heavily on a single supplier of goods or services? | E70: High | F70: =IFERROR(INDEX($F$202:$F$205,MATCH($E70,$C$202:$C$205,0),1),0) -> {75%} | I70: =INDEX($T$6:$X$6,1,MATCH(H70,$T70:$X70,0)) ->  | J70: =I70*INDEX($F$202:$F$205,MATCH($E70,$C$202:$C$205,0),1) ->  | M70: =INDEX($T$6:$X$6,1,MATCH(L70,$T70:$X70,0)) ->  | N70: =M70*INDEX($F$202:$F$205,MATCH($E70,$C$202:$C$205,0),1) ->  | Q70: =INDEX($T$6:$X$6,1,MATCH(P70,$T70:$X70,0)) ->  | R70: =Q70*INDEX($F$202:$F$205,MATCH($E70,$C$202:$C$205,0),1) ->  | T70: It is not clear where the supply is coming from | U70: Yes, without a long-term supply contract | V70: Long term supply contract, with either non-investment grade company or SOE without government guarantee | W70: Long term supply contract, with either investment grade company or SOE with government guarantee | X70: Not heavily reliant
B72: =IF(C72<>"",MAX(B$14:B71)+1,"") -> 21 | C72: Would the physical infrastructure pass through multiple jurisdictions? | E72: Medium | F72: =IFERROR(INDEX($F$202:$F$205,MATCH($E72,$C$202:$C$205,0),1),0) -> {50%} | I72: =INDEX($T$6:$X$6,1,MATCH(H72,$T72:$X72,0)) ->  | J72: =I72*INDEX($F$202:$F$205,MATCH($E72,$C$202:$C$205,0),1) ->  | M72: =INDEX($T$6:$X$6,1,MATCH(L72,$T72:$X72,0)) ->  | N72: =M72*INDEX($F$202:$F$205,MATCH($E72,$C$202:$C$205,0),1) ->  | Q72: =INDEX($T$6:$X$6,1,MATCH(P72,$T72:$X72,0)) ->  | R72: =Q72*INDEX($F$202:$F$205,MATCH($E72,$C$202:$C$205,0),1) ->  | T72: Project in multiple jurisdictions with NO experience of shared PPPs | U72: Project in multiple jurisdictions with limited experience of shared PPPs | V72: Project in multiple jurisdictions with previous experience of shared PPPs | W72: Project in two jurisdictions | X72: Project fully contained within one jurisdiction
C74: Sub-total | E74: (Max score: | F74: =SUM(F49:F73)*$X$6 -> 41.25) | J74: =SUM(J49:J73) ->  | N74: =SUM(N49:N73) ->  | R74: =SUM(R49:R73) -> 
B76: V | C76: Fit with development priorities
B78: =IF(C78<>"",MAX(B$14:B77)+1,"") -> 22 | C78: Does the project fit into national development priorities? | E78: High | F78: =IFERROR(INDEX($F$202:$F$205,MATCH($E78,$C$202:$C$205,0),1),0) -> {75%} | I78: =INDEX($T$6:$X$6,1,MATCH(H78,$T78:$X78,0)) ->  | J78: =I78*INDEX($F$202:$F$205,MATCH($E78,$C$202:$C$205,0),1) ->  | M78: =INDEX($T$6:$X$6,1,MATCH(L78,$T78:$X78,0)) ->  | N78: =M78*INDEX($F$202:$F$205,MATCH($E78,$C$202:$C$205,0),1) ->  | Q78: =INDEX($T$6:$X$6,1,MATCH(P78,$T78:$X78,0)) ->  | R78: =Q78*INDEX($F$202:$F$205,MATCH($E78,$C$202:$C$205,0),1) ->  | T78: Not at all | U78: Low | V78: Medium | W78: High | X78: Top
B80: =IF(C80<>"",MAX(B$14:B79)+1,"") -> 23 | C80: Is the project part of a sector plan? | E80: Medium | F80: =IFERROR(INDEX($F$202:$F$205,MATCH($E80,$C$202:$C$205,0),1),0) -> {50%} | I80: =INDEX($T$6:$X$6,1,MATCH(H80,$T80:$X80,0)) ->  | J80: =I80*INDEX($F$202:$F$205,MATCH($E80,$C$202:$C$205,0),1) ->  | M80: =INDEX($T$6:$X$6,1,MATCH(L80,$T80:$X80,0)) ->  | N80: =M80*INDEX($F$202:$F$205,MATCH($E80,$C$202:$C$205,0),1) ->  | Q80: =INDEX($T$6:$X$6,1,MATCH(P80,$T80:$X80,0)) ->  | R80: =Q80*INDEX($F$202:$F$205,MATCH($E80,$C$202:$C$205,0),1) ->  | T80: Conflicts with sector plan | U80: Ad hoc project- but not in conflict with sector plan | V80: Ad hoc project- but in line with sector plan | W80: Part of sector plan | X80: Forms integral part of sector plan
B82: =IF(C82<>"",MAX(B$14:B81)+1,"") -> 24 | C82: Is the development of this project a prerequisite to other potential projects? | E82: Low | F82: =IFERROR(INDEX($F$202:$F$205,MATCH($E82,$C$202:$C$205,0),1),0) -> {25%} | I82: =INDEX($T$6:$X$6,1,MATCH(H82,$T82:$X82,0)) ->  | J82: =I82*INDEX($F$202:$F$205,MATCH($E82,$C$202:$C$205,0),1) ->  | M82: =INDEX($T$6:$X$6,1,MATCH(L82,$T82:$X82,0)) ->  | N82: =M82*INDEX($F$202:$F$205,MATCH($E82,$C$202:$C$205,0),1) ->  | Q82: =INDEX($T$6:$X$6,1,MATCH(P82,$T82:$X82,0)) ->  | R82: =Q82*INDEX($F$202:$F$205,MATCH($E82,$C$202:$C$205,0),1) ->  | T82: Prevents the development of further projects | U82: Detrimental to the feasibility of other projects | V82: Does not affect the feasibility of other projects | W82: Important to development | X82: Yes-central to development
B84: =IF(C84<>"",MAX(B$14:B83)+1,"") -> 25 | C84: What is the potential impact on export earnings | E84: Low | F84: =IFERROR(INDEX($F$202:$F$205,MATCH($E84,$C$202:$C$205,0),1),0) -> {25%} | I84: =INDEX($T$6:$X$6,1,MATCH(H84,$T84:$X84,0)) ->  | J84: =I84*INDEX($F$202:$F$205,MATCH($E84,$C$202:$C$205,0),1) ->  | M84: =INDEX($T$6:$X$6,1,MATCH(L84,$T84:$X84,0)) ->  | N84: =M84*INDEX($F$202:$F$205,MATCH($E84,$C$202:$C$205,0),1) ->  | Q84: =INDEX($T$6:$X$6,1,MATCH(P84,$T84:$X84,0)) ->  | R84: =Q84*INDEX($F$202:$F$205,MATCH($E84,$C$202:$C$205,0),1) ->  | T84: Major negative overseas trade and/or tourism impact | U84: Limited negative overseas trade and/or tourism impact | V84: No positive or negative overseas trade and/or tourism impact | W84: Limited positive overseas trade and/or tourism impact | X84: Major positive overseas trade and/or tourism impact
C86: Sub-total | E86: (Max score: | F86: =SUM(F77:F85)*$X$6 -> 8.75) | J86: =SUM(J77:J85) ->  | N86: =SUM(N77:N85) ->  | R86: =SUM(R77:R85) -> 
B88: VI | C88: Land acquisition
B90: =IF(C90<>"",MAX(B$14:B89)+1,"") -> 26 | C90: Will the PPP require land acquisition? | E90: Very high | F90: =IFERROR(INDEX($F$202:$F$205,MATCH($E90,$C$202:$C$205,0),1),0) -> {100%} | I90: =INDEX($T$6:$X$6,1,MATCH(H90,$T90:$X90,0)) ->  | J90: =I90*INDEX($F$202:$F$205,MATCH($E90,$C$202:$C$205,0),1) ->  | M90: =INDEX($T$6:$X$6,1,MATCH(L90,$T90:$X90,0)) ->  | N90: =M90*INDEX($F$202:$F$205,MATCH($E90,$C$202:$C$205,0),1) ->  | Q90: =INDEX($T$6:$X$6,1,MATCH(P90,$T90:$X90,0)) ->  | R90: =Q90*INDEX($F$202:$F$205,MATCH($E90,$C$202:$C$205,0),1) ->  | T90: Major land acquisition | U90: Significant land acquisition | V90: Some land acquisition | W90: Minor land acquisition | X90: No land acquisition
B92: =IF(C92<>"",MAX(B$14:B91)+1,"") -> 27 | C92: If land acquisition is required, will the public sector do this? | E92: Very high | F92: =IFERROR(INDEX($F$202:$F$205,MATCH($E92,$C$202:$C$205,0),1),0) -> {100%} | I92: =INDEX($T$6:$X$6,1,MATCH(H92,$T92:$X92,0)) ->  | J92: =I92*INDEX($F$202:$F$205,MATCH($E92,$C$202:$C$205,0),1) ->  | M92: =INDEX($T$6:$X$6,1,MATCH(L92,$T92:$X92,0)) ->  | N92: =M92*INDEX($F$202:$F$205,MATCH($E92,$C$202:$C$205,0),1) ->  | Q92: =INDEX($T$6:$X$6,1,MATCH(P92,$T92:$X92,0)) ->  | R92: =Q92*INDEX($F$202:$F$205,MATCH($E92,$C$202:$C$205,0),1) ->  | T92: Public sector will not acquire land | U92: Public sector will acquire some land before construction start | V92: Public sector will acquire land before construction start | W92: Public sector will acquire land before project tendered | X92: No land acquisition
C94: Sub-total | E94: (Max score: | F94: =SUM(F89:F93)*$X$6 -> 10.00) | J94: =SUM(J89:J93) ->  | N94: =SUM(N89:N93) ->  | R94: =SUM(R89:R93) -> 
B96: VII | C96: Environmental and social impacts
B98: =IF(C98<>"",MAX(B$14:B97)+1,"") -> 28 | C98: Will the PPP have significant negative environmental impacts? | E98: Very high | F98: =IFERROR(INDEX($F$202:$F$205,MATCH($E98,$C$202:$C$205,0),1),0) -> {100%} | I98: =INDEX($T$6:$X$6,1,MATCH(H98,$T98:$X98,0)) ->  | J98: =I98*INDEX($F$202:$F$205,MATCH($E98,$C$202:$C$205,0),1) ->  | M98: =INDEX($T$6:$X$6,1,MATCH(L98,$T98:$X98,0)) ->  | N98: =M98*INDEX($F$202:$F$205,MATCH($E98,$C$202:$C$205,0),1) ->  | Q98: =INDEX($T$6:$X$6,1,MATCH(P98,$T98:$X98,0)) ->  | R98: =Q98*INDEX($F$202:$F$205,MATCH($E98,$C$202:$C$205,0),1) ->  | T98: Major negative impacts | U98: Significant negative impacts | V98: Some negative impacts | W98: Minimal negative impacts | X98: No negative impacts
B100: =IF(C100<>"",MAX(B$14:B99)+1,"") -> 29 | C100: Will the PPP have significant negative social impacts, including resettlement of houses, businesses etc. | E100: Very high | F100: =IFERROR(INDEX($F$202:$F$205,MATCH($E100,$C$202:$C$205,0),1),0) -> {100%} | I100: =INDEX($T$6:$X$6,1,MATCH(H100,$T100:$X100,0)) ->  | J100: =I100*INDEX($F$202:$F$205,MATCH($E100,$C$202:$C$205,0),1) ->  | M100: =INDEX($T$6:$X$6,1,MATCH(L100,$T100:$X100,0)) ->  | N100: =M100*INDEX($F$202:$F$205,MATCH($E100,$C$202:$C$205,0),1) ->  | Q100: =INDEX($T$6:$X$6,1,MATCH(P100,$T100:$X100,0)) ->  | R100: =Q100*INDEX($F$202:$F$205,MATCH($E100,$C$202:$C$205,0),1) ->  | T100: Major negative impacts | U100: Significant negative impacts | V100: Some negative impacts | W100: Minimal negative impacts | X100: No negative impacts
C102: Sub-total | E102: (Max score: | F102: =SUM(F97:F101)*$X$6 -> 10.00) | J102: =SUM(J97:J101) ->  | N102: =SUM(N97:N101) ->  | R102: =SUM(R97:R101) -> 
B104: VIII | C104: Labour and employment
B106: =IF(C106<>"",MAX(B$14:B105)+1,"") -> 30 | C106: Will a significant transfer of employees take place under the PPP? | E106: Medium | F106: =IFERROR(INDEX($F$202:$F$205,MATCH($E106,$C$202:$C$205,0),1),0) -> {50%} | I106: =INDEX($T$6:$X$6,1,MATCH(H106,$T106:$X106,0)) ->  | J106: =I106*INDEX($F$202:$F$205,MATCH($E106,$C$202:$C$205,0),1) ->  | M106: =INDEX($T$6:$X$6,1,MATCH(L106,$T106:$X106,0)) ->  | N106: =M106*INDEX($F$202:$F$205,MATCH($E106,$C$202:$C$205,0),1) ->  | Q106: =INDEX($T$6:$X$6,1,MATCH(P106,$T106:$X106,0)) ->  | R106: =Q106*INDEX($F$202:$F$205,MATCH($E106,$C$202:$C$205,0),1) ->  | T106: Very large numbers (>25%) transferred | U106: Large numbers (15-25%) transferred | V106: Significant numbers (5-15%) transferred | W106: Moderate numbers (2-5%) transferred | X106: Insignificant numbers (<2%) transferred
B108: =IF(C108<>"",MAX(B$14:B107)+1,"") -> 31 | C108: Have there been successful transfers under previous PPPs? | E108: Low | F108: =IFERROR(INDEX($F$202:$F$205,MATCH($E108,$C$202:$C$205,0),1),0) -> {25%} | I108: =INDEX($T$6:$X$6,1,MATCH(H108,$T108:$X108,0)) ->  | J108: =I108*INDEX($F$202:$F$205,MATCH($E108,$C$202:$C$205,0),1) ->  | M108: =INDEX($T$6:$X$6,1,MATCH(L108,$T108:$X108,0)) ->  | N108: =M108*INDEX($F$202:$F$205,MATCH($E108,$C$202:$C$205,0),1) ->  | Q108: =INDEX($T$6:$X$6,1,MATCH(P108,$T108:$X108,0)) ->  | R108: =Q108*INDEX($F$202:$F$205,MATCH($E108,$C$202:$C$205,0),1) ->  | T108: No previous transfers | U108: Most past transfers have been unsuccessful | V108: Past transfers have had mixed results | W108: Most past transfers have been successful | X108: No significant transfers required OR successful past transfers completed
B110: =IF(C110<>"",MAX(B$14:B109)+1,"") -> 32 | C110: Is the project likely to result in job losses or create new jobs? | E110: Medium | F110: =IFERROR(INDEX($F$202:$F$205,MATCH($E110,$C$202:$C$205,0),1),0) -> {50%} | I110: =INDEX($T$6:$X$6,1,MATCH(H110,$T110:$X110,0)) ->  | J110: =I110*INDEX($F$202:$F$205,MATCH($E110,$C$202:$C$205,0),1) ->  | M110: =INDEX($T$6:$X$6,1,MATCH(L110,$T110:$X110,0)) ->  | N110: =M110*INDEX($F$202:$F$205,MATCH($E110,$C$202:$C$205,0),1) ->  | Q110: =INDEX($T$6:$X$6,1,MATCH(P110,$T110:$X110,0)) ->  | R110: =Q110*INDEX($F$202:$F$205,MATCH($E110,$C$202:$C$205,0),1) ->  | T110: Significant job losses likely (>10% of existing workforce) | U110: Some job losses likely (<10% of existing workforce) | V110: No job losses are expected | W110: The project is expected to create a few new jobs | X110: The project is expected to create many new jobs
B112: =IF(C112<>"",MAX(B$14:B111)+1,"") -> 33 | C112: What proportion of the project works, goods, and services will be acquired locally? | E112: Medium | F112: =IFERROR(INDEX($F$202:$F$205,MATCH($E112,$C$202:$C$205,0),1),0) -> {50%} | I112: =INDEX($T$6:$X$6,1,MATCH(H112,$T112:$X112,0)) ->  | J112: =I112*INDEX($F$202:$F$205,MATCH($E112,$C$202:$C$205,0),1) ->  | M112: =INDEX($T$6:$X$6,1,MATCH(L112,$T112:$X112,0)) ->  | N112: =M112*INDEX($F$202:$F$205,MATCH($E112,$C$202:$C$205,0),1) ->  | Q112: =INDEX($T$6:$X$6,1,MATCH(P112,$T112:$X112,0)) ->  | R112: =Q112*INDEX($F$202:$F$205,MATCH($E112,$C$202:$C$205,0),1) ->  | T112: Insignificant proportion (< 10%) | U112: Moderate proportion (10 - 30%) | V112: Significant proportion (30 - 50%) | W112: Large proportion (50 - 80%) | X112: Very large proportion (> 80%)
C114: Sub-total | E114: (Max score: | F114: =SUM(F105:F113)*$X$6 -> 8.75) | J114: =SUM(J105:J113) ->  | N114: =SUM(N105:N113) ->  | R114: =SUM(R105:R113) -> 
B116: IX | C116: Demand and payment risk
B118: =IF(C118<>"",MAX(B$14:B117)+1,"") -> 34 | C118: What is the main revenue source for the project? | E118: High | F118: =IFERROR(INDEX($F$202:$F$205,MATCH($E118,$C$202:$C$205,0),1),0) -> {75%} | I118: =INDEX($T$6:$X$6,1,MATCH(H118,$T118:$X118,0)) ->  | J118: =I118*INDEX($F$202:$F$205,MATCH($E118,$C$202:$C$205,0),1) ->  | M118: =INDEX($T$6:$X$6,1,MATCH(L118,$T118:$X118,0)) ->  | N118: =M118*INDEX($F$202:$F$205,MATCH($E118,$C$202:$C$205,0),1) ->  | Q118: =INDEX($T$6:$X$6,1,MATCH(P118,$T118:$X118,0)) ->  | R118: =Q118*INDEX($F$202:$F$205,MATCH($E118,$C$202:$C$205,0),1) ->  | T118: As yet unknown | U118: Other | V118: Charges (user pays) | W118: Shadow charges (government pays) | X118: Annuity payments
B120: =IF(C120<>"",MAX(B$14:B119)+1,"") -> 35 | C120: How much demand risk is there? | E120: High | F120: =IFERROR(INDEX($F$202:$F$205,MATCH($E120,$C$202:$C$205,0),1),0) -> {75%} | I120: =INDEX($T$6:$X$6,1,MATCH(H120,$T120:$X120,0)) ->  | J120: =I120*INDEX($F$202:$F$205,MATCH($E120,$C$202:$C$205,0),1) ->  | M120: =INDEX($T$6:$X$6,1,MATCH(L120,$T120:$X120,0)) ->  | N120: =M120*INDEX($F$202:$F$205,MATCH($E120,$C$202:$C$205,0),1) ->  | Q120: =INDEX($T$6:$X$6,1,MATCH(P120,$T120:$X120,0)) ->  | R120: =Q120*INDEX($F$202:$F$205,MATCH($E120,$C$202:$C$205,0),1) ->  | T120: Very high demand risk | U120: High demand risk | V120: Moderate demand risk | W120: Low demand risk | X120: No demand risk
B122: =IF(C122<>"",MAX(B$14:B121)+1,"") -> 36 | C122: How are user charges (or shadow charges) set? | E122: High | F122: =IFERROR(INDEX($F$202:$F$205,MATCH($E122,$C$202:$C$205,0),1),0) -> {75%} | I122: =INDEX($T$6:$X$6,1,MATCH(H122,$T122:$X122,0)) ->  | J122: =I122*INDEX($F$202:$F$205,MATCH($E122,$C$202:$C$205,0),1) ->  | M122: =INDEX($T$6:$X$6,1,MATCH(L122,$T122:$X122,0)) ->  | N122: =M122*INDEX($F$202:$F$205,MATCH($E122,$C$202:$C$205,0),1) ->  | Q122: =INDEX($T$6:$X$6,1,MATCH(P122,$T122:$X122,0)) ->  | R122: =Q122*INDEX($F$202:$F$205,MATCH($E122,$C$202:$C$205,0),1) ->  | T122: Set by ministry / public enterprise using discretion | U122: Set by independent regulator using discretion | V122: Set by ministry / public enterprise using formula in contract | W122: Set by independent regulator using formula in contract | X122: Fixed for contract life OR no user charges payable
B124: =IF(C124<>"",MAX(B$14:B123)+1,"") -> 37 | C124: Are the entity's subsidies / annuity payments guaranteed by central government? | E124: High | F124: =IFERROR(INDEX($F$202:$F$205,MATCH($E124,$C$202:$C$205,0),1),0) -> {75%} | I124: =INDEX($T$6:$X$6,1,MATCH(H124,$T124:$X124,0)) ->  | J124: =I124*INDEX($F$202:$F$205,MATCH($E124,$C$202:$C$205,0),1) ->  | M124: =INDEX($T$6:$X$6,1,MATCH(L124,$T124:$X124,0)) ->  | N124: =M124*INDEX($F$202:$F$205,MATCH($E124,$C$202:$C$205,0),1) ->  | Q124: =INDEX($T$6:$X$6,1,MATCH(P124,$T124:$X124,0)) ->  | R124: =Q124*INDEX($F$202:$F$205,MATCH($E124,$C$202:$C$205,0),1) ->  | T124: No guarantee, very poor track record of paying subsidies / annuities | U124: No guarantee, unreliable track record of paying subsidies / annuities | V124: No guarantee, no previous requirement to pay subsidies / annuities | W124: No guarantee, good track record of paying subsidies / annuities | X124: No subsidies/annuities payable OR payment backed by a central government guarantee
C126: Sub-total | E126: (Max score: | F126: =SUM(F117:F125)*$X$6 -> 15.00) | J126: =SUM(J117:J125) ->  | N126: =SUM(N117:N125) ->  | R126: =SUM(R117:R125) -> 
B128: X | C128: Commercial viability
B130: =IF(C130<>"",MAX(B$14:B129)+1,"") -> 38 | C130: Is the financial viability of the project dependent on receiving a grant/subsidy? | E130: Very high | F130: =IFERROR(INDEX($F$202:$F$205,MATCH($E130,$C$202:$C$205,0),1),0) -> {100%} | I130: =INDEX($T$6:$X$6,1,MATCH(H130,$T130:$X130,0)) ->  | J130: =I130*INDEX($F$202:$F$205,MATCH($E130,$C$202:$C$205,0),1) ->  | M130: =INDEX($T$6:$X$6,1,MATCH(L130,$T130:$X130,0)) ->  | N130: =M130*INDEX($F$202:$F$205,MATCH($E130,$C$202:$C$205,0),1) ->  | Q130: =INDEX($T$6:$X$6,1,MATCH(P130,$T130:$X130,0)) ->  | R130: =Q130*INDEX($F$202:$F$205,MATCH($E130,$C$202:$C$205,0),1) ->  | T130: Completely | U130: Likely | V130: Somewhat | W130: Unlikely | X130: Not at all
B132: =IF(C132<>"",MAX(B$14:B131)+1,"") -> 39 | C132: How soon after the start of the project are positive cash flows expected to start | E132: Medium | F132: =IFERROR(INDEX($F$202:$F$205,MATCH($E132,$C$202:$C$205,0),1),0) -> {50%} | I132: =INDEX($T$6:$X$6,1,MATCH(H132,$T132:$X132,0)) ->  | J132: =I132*INDEX($F$202:$F$205,MATCH($E132,$C$202:$C$205,0),1) ->  | M132: =INDEX($T$6:$X$6,1,MATCH(L132,$T132:$X132,0)) ->  | N132: =M132*INDEX($F$202:$F$205,MATCH($E132,$C$202:$C$205,0),1) ->  | Q132: =INDEX($T$6:$X$6,1,MATCH(P132,$T132:$X132,0)) ->  | R132: =Q132*INDEX($F$202:$F$205,MATCH($E132,$C$202:$C$205,0),1) ->  | T132: 5 Years + | U132: 3-5 Years | V132: 2-3 Years | W132: 1-2 Years | X132: <1 Year
B134: =IF(C134<>"",MAX(B$14:B133)+1,"") -> 40 | C134: What overall level of risk is assumed by the private sector? | E134: High | F134: =IFERROR(INDEX($F$202:$F$205,MATCH($E134,$C$202:$C$205,0),1),0) -> {75%} | I134: =INDEX($T$6:$X$6,1,MATCH(H134,$T134:$X134,0)) ->  | J134: =I134*INDEX($F$202:$F$205,MATCH($E134,$C$202:$C$205,0),1) ->  | M134: =INDEX($T$6:$X$6,1,MATCH(L134,$T134:$X134,0)) ->  | N134: =M134*INDEX($F$202:$F$205,MATCH($E134,$C$202:$C$205,0),1) ->  | Q134: =INDEX($T$6:$X$6,1,MATCH(P134,$T134:$X134,0)) ->  | R134: =Q134*INDEX($F$202:$F$205,MATCH($E134,$C$202:$C$205,0),1) ->  | T134: High | U134: Moderate to high | V134: Moderate | W134: Minimal to moderate | X134: Minimal
C136: Sub-total | E136: (Max score: | F136: =SUM(F129:F135)*$X$6 -> 11.25) | J136: =SUM(J129:J135) ->  | N136: =SUM(N129:N135) ->  | R136: =SUM(R129:R135) -> 
B138: XI | C138: Level of project preparation
B140: =IF(C140<>"",MAX(B$14:B139)+1,"") -> 41 | C140: To what level has the project been prepared already? | E140: Medium | F140: =IFERROR(INDEX($F$202:$F$205,MATCH($E140,$C$202:$C$205,0),1),0) -> {50%} | I140: =INDEX($T$6:$X$6,1,MATCH(H140,$T140:$X140,0)) ->  | J140: =I140*INDEX($F$202:$F$205,MATCH($E140,$C$202:$C$205,0),1) ->  | M140: =INDEX($T$6:$X$6,1,MATCH(L140,$T140:$X140,0)) ->  | N140: =M140*INDEX($F$202:$F$205,MATCH($E140,$C$202:$C$205,0),1) ->  | Q140: =INDEX($T$6:$X$6,1,MATCH(P140,$T140:$X140,0)) ->  | R140: =Q140*INDEX($F$202:$F$205,MATCH($E140,$C$202:$C$205,0),1) ->  | T140: Very basic project concept only | U140: Project concept currently under preparation | V140: Project concept clearly defined, including needs and benefit assessment | W140: Pre-feasibility study completed | X140: Feasibility study completed
B142: =IF(C142<>"",MAX(B$14:B141)+1,"") -> 42 | C142: Is there sufficient data to allow project preparation? | E142: Medium | F142: =IFERROR(INDEX($F$202:$F$205,MATCH($E142,$C$202:$C$205,0),1),0) -> {50%} | I142: =INDEX($T$6:$X$6,1,MATCH(H142,$T142:$X142,0)) ->  | J142: =I142*INDEX($F$202:$F$205,MATCH($E142,$C$202:$C$205,0),1) ->  | M142: =INDEX($T$6:$X$6,1,MATCH(L142,$T142:$X142,0)) ->  | N142: =M142*INDEX($F$202:$F$205,MATCH($E142,$C$202:$C$205,0),1) ->  | Q142: =INDEX($T$6:$X$6,1,MATCH(P142,$T142:$X142,0)) ->  | R142: =Q142*INDEX($F$202:$F$205,MATCH($E142,$C$202:$C$205,0),1) ->  | T142: None | U142: Little | V142: Some | W142: Most | X142: All data available
B144: =IF(C144<>"",MAX(B$14:B143)+1,"") -> 43 | C144: Have similar past projects been implemented by the government as PPPs? | E144: Medium | F144: =IFERROR(INDEX($F$202:$F$205,MATCH($E144,$C$202:$C$205,0),1),0) -> {50%} | I144: =INDEX($T$6:$X$6,1,MATCH(H144,$T144:$X144,0)) ->  | J144: =I144*INDEX($F$202:$F$205,MATCH($E144,$C$202:$C$205,0),1) ->  | M144: =INDEX($T$6:$X$6,1,MATCH(L144,$T144:$X144,0)) ->  | N144: =M144*INDEX($F$202:$F$205,MATCH($E144,$C$202:$C$205,0),1) ->  | Q144: =INDEX($T$6:$X$6,1,MATCH(P144,$T144:$X144,0)) ->  | R144: =Q144*INDEX($F$202:$F$205,MATCH($E144,$C$202:$C$205,0),1) ->  | T144: No previous experience and no standard documents | U144: Previous dissimilar projects with no standard documents | V144: Previous dissimilar projects but standard documents prepared | W144: Similar projects previously tendered | X144: Similar projects previously tendered using standard documents
C146: Sub-total | E146: (Max score: | F146: =SUM(F139:F145)*$X$6 -> 7.50) | J146: =SUM(J139:J145) ->  | N146: =SUM(N139:N145) ->  | R146: =SUM(R139:R145) -> 
C148: Total score
B150: =B16 -> I | C150: =C16 -> Public sector capacity and experience | E150: (Max score: | F150: =F24 -> 11.25) | J150: =J24 ->  | N150: =N24 ->  | R150: =R24 -> 
B151: =B26 -> II | C151: =C26 -> Public sector funding | E151: (Max score: | F151: =F34 -> 7.50) | J151: =J34 ->  | N151: =N34 ->  | R151: =R34 -> 
B152: =B36 -> III | C152: =C36 -> Private sector capability and appetite | E152: (Max score: | F152: =F44 -> 13.75) | J152: =J44 ->  | N152: =N44 ->  | R152: =R44 -> 
B153: =B48 -> IV | C153: =C48 -> Key project characteristics | E153: (Max score: | F153: =F74 -> 41.25) | J153: =J74 ->  | N153: =N74 ->  | R153: =R74 -> 
B154: =B76 -> V | C154: =C76 -> Fit with development priorities | E154: (Max score: | F154: =F86 -> 8.75) | J154: =J86 ->  | N154: =N86 ->  | R154: =R86 -> 
B155: =B88 -> VI | C155: =C88 -> Land acquisition | E155: (Max score: | F155: =F94 -> 10.00) | J155: =J94 ->  | N155: =N94 ->  | R155: =R94 -> 
B156: =B96 -> VII | C156: =C96 -> Environmental and social impacts | E156: (Max score: | F156: =F102 -> 10.00) | J156: =J102 ->  | N156: =N102 ->  | R156: =R102 -> 
B157: =B104 -> VIII | C157: =C104 -> Labour and employment | E157: (Max score: | F157: =F114 -> 8.75) | J157: =J114 ->  | N157: =N114 ->  | R157: =R114 -> 
B158: =B116 -> IX | C158: =C116 -> Demand and payment risk | E158: (Max score: | F158: =F126 -> 15.00) | J158: =J126 ->  | N158: =N126 ->  | R158: =R126 -> 
B159: =B128 -> X | C159: =C128 -> Commercial viability | E159: (Max score: | F159: =F136 -> 11.25) | J159: =J136 ->  | N159: =N136 ->  | R159: =R136 -> 
B160: =B138 -> XI | C160: =C138 -> Level of project preparation | E160: (Max score: | F160: =F146 -> 7.50) | J160: =J146 ->  | N160: =N146 ->  | R160: =R146 -> 
C161: Total | E161: (Max score: | F161: =SUM($F$149:$F$160) -> 145.00) | J161: =SUM(J149:J160) ->  | N161: =SUM(N149:N160) ->  | R161: =SUM(R149:R160) -> 
C163: Final score (as % of max) | J163: =IFERROR(J161/$F$161,"") ->  | N163: =IFERROR(N161/$F$161,"") ->  | R163: =IFERROR(R161/$F$161,"") -> 
C164: Suitability for PPP | J164: =IFERROR(INDEX($C$209:$C$213,MATCH(J163,$F$209:$F$213,1),1),"") ->  | N164: =IFERROR(INDEX($C$209:$C$213,MATCH(N163,$F$209:$F$213,1),1),"") ->  | R164: =IFERROR(INDEX($C$209:$C$213,MATCH(R163,$F$209:$F$213,1),1),"") -> 
C166: Rank against other projects | J166: =IFERROR(_xlfn.RANK.EQ(J163,$G$163:$S$163,0)+COUNTIF($G$163:J163,J163)-1,"") ->  | N166: =IFERROR(_xlfn.RANK.EQ(N163,$G$163:$S$163,0)+COUNTIF($G$163:N163,N163)-1,"") ->  | R166: =IFERROR(_xlfn.RANK.EQ(R163,$G$163:$S$163,0)+COUNTIF($G$163:R163,R163)-1,"") -> 
B168: =IF(MAX(B14:B147)=COUNT(B14:B147),"","ERROR") ->  | C168: CHECK | F168: =IF(F161=SUMIF(F14:F147,"<=1")*X6,"","ERROR") ->  | J168: =IFERROR(IF(AND(SUM(J14:J147)=SUM(J150:J161),J161=SUM(J137:J145,J127:J135,J115:J125,J103:J113,J95:J101,J87:J93,J75:J85,J45:J73,J35:J43,J25:J33,J16:J23,#REF!,J14:J15)),"","ERROR"),"") ->  | N168: =IFERROR(IF(AND(SUM(N14:N147)=SUM(N150:N161),N161=SUM(N137:N145,N127:N135,N115:N125,N103:N113,N95:N101,N87:N93,N75:N85,N45:N73,N35:N43,N25:N33,N16:N23,#REF!,N14:N15)),"","ERROR"),"") ->  | R168: =IFERROR(IF(AND(SUM(R14:R147)=SUM(R150:R161),R161=SUM(R137:R145,R127:R135,R115:R125,R103:R113,R95:R101,R87:R93,R75:R85,R45:R73,R35:R43,R25:R33,R16:R23,#REF!,R14:R15)),"","ERROR"),"") -> 
B198: Annexes
B200: Importance weights
C202: Low | F202: 25%
C203: Medium | F203: 50%
C204: High | F204: 75%
C205: Very high | F205: 100%
B207: Suitability rating
C209: Very difficult | F209: 0%
C210: Difficult | F210: 20%
C211: Possible | F211: 40%
C212: Attractive | F212: 60%
C213: Very attractive | F213: 80%
B215: End of sheet

Sheet Summary
B1: =[0]!Title_Model -> RAE: ALLOWED REVENUE MODEL
B2: =Title_Project -> 
C5: Category | D5: Score
D6: =IF(Tool!H11<>"",Tool!H11,"") -> Project A | E6: =IF(Tool!L11<>"",Tool!L11,"") -> Project B | F6: =IF(Tool!P11<>"",Tool!P11,"") -> Project C
C7: =Tool!C150 -> Public sector capacity and experience | D7: =Tool!J150 ->  | E7: =IFERROR(Tool!N150,"") ->  | F7: =IFERROR(Tool!R150,"") -> 
C8: =Tool!C151 -> Public sector funding | D8: =Tool!J151 ->  | E8: =IFERROR(Tool!N151,"") ->  | F8: =IFERROR(Tool!R151,"") -> 
C9: =Tool!C152 -> Private sector capability and appetite | D9: =Tool!J152 ->  | E9: =IFERROR(Tool!N152,"") ->  | F9: =IFERROR(Tool!R152,"") -> 
C10: =Tool!C153 -> Key project characteristics | D10: =Tool!J153 ->  | E10: =IFERROR(Tool!N153,"") ->  | F10: =IFERROR(Tool!R153,"") -> 
C11: =Tool!C154 -> Fit with development priorities | D11: =Tool!J154 ->  | E11: =IFERROR(Tool!N154,"") ->  | F11: =IFERROR(Tool!R154,"") -> 
C12: =Tool!C155 -> Land acquisition | D12: =Tool!J155 ->  | E12: =IFERROR(Tool!N155,"") ->  | F12: =IFERROR(Tool!R155,"") -> 
C13: =Tool!C156 -> Environmental and social impacts | D13: =Tool!J156 ->  | E13: =IFERROR(Tool!N156,"") ->  | F13: =IFERROR(Tool!R156,"") -> 
C14: =Tool!C157 -> Labour and employment | D14: =Tool!J157 ->  | E14: =IFERROR(Tool!N157,"") ->  | F14: =IFERROR(Tool!R157,"") -> 
C15: =Tool!C158 -> Demand and payment risk | D15: =Tool!J158 ->  | E15: =IFERROR(Tool!N158,"") ->  | F15: =IFERROR(Tool!R158,"") -> 
C16: =Tool!C159 -> Commercial viability | D16: =Tool!J159 ->  | E16: =IFERROR(Tool!N159,"") ->  | F16: =IFERROR(Tool!R159,"") -> 
C17: =Tool!C160 -> Level of project preparation | D17: =Tool!J160 ->  | E17: =IFERROR(Tool!N160,"") ->  | F17: =IFERROR(Tool!R160,"") -> 
C18: =Tool!C161 -> Total | D18: =Tool!J161 ->  | E18: =IFERROR(Tool!N161,"") ->  | F18: =IFERROR(Tool!R161,"") -> 
C19: =Tool!C163 -> Final score (as % of max) | D19: =Tool!J163 ->  | E19: =Tool!N163 ->  | F19: =Tool!R163 -> 
C20: =Tool!C164 -> Suitability for PPP | D20: =Tool!J164 ->  | E20: =Tool!N164 ->  | F20: =Tool!R164 -> 
C66: Category | D66: Category contribution to maximum score (based on importance weights)
C68: =Tool!C150 -> Public sector capacity and experience | D68: =Tool!F150/Tool!F$161 -> 8%
C69: =Tool!C151 -> Public sector funding | D69: =Tool!F151/Tool!F$161 -> 5%
C70: =Tool!C152 -> Private sector capability and appetite | D70: =Tool!F152/Tool!F$161 -> 9%
C71: =Tool!C153 -> Key project characteristics | D71: =Tool!F153/Tool!F$161 -> 28%
C72: =Tool!C154 -> Fit with development priorities | D72: =Tool!F154/Tool!F$161 -> 6%
C73: =Tool!C155 -> Land acquisition | D73: =Tool!F155/Tool!F$161 -> 7%
C74: =Tool!C156 -> Environmental and social impacts | D74: =Tool!F156/Tool!F$161 -> 7%
C75: =Tool!C157 -> Labour and employment | D75: =Tool!F157/Tool!F$161 -> 6%
C76: =Tool!C158 -> Demand and payment risk | D76: =Tool!F158/Tool!F$161 -> 10%
C77: =Tool!C159 -> Commercial viability | D77: =Tool!F159/Tool!F$161 -> 8%
C78: =Tool!C160 -> Level of project preparation | D78: =Tool!F160/Tool!F$161 -> 5%
C79: Total | D79: =Tool!F161/Tool!F$161 -> 100%

Sheet Handout
B1: =[0]!Title_Model -> RAE: ALLOWED REVENUE MODEL
B2: =Title_Project -> 
B4: No. | C4: Question | E4: Answers | J4: Scoring
E5: 1 | F5: 2 | G5: 3 | H5: 4 | I5: 5 | J5: Initial score (1 to 5) | K5: Multiplied by weighting | L5: Equals weighted score
B6: A | C6: =INDEX(Tool!C$14:C$147,MATCH($B6,Tool!$B$14:$B$147,0),1) -> How supportive is the PPP environment? | E6: =IF(INDEX(Tool!T$14:T$147,MATCH($B6,Tool!$B$14:$B$147,0),1)<>"",INDEX(Tool!T$14:T$147,MATCH($B6,Tool!$B$14:$B$147,0),1),"") ->  | F6: =IF(INDEX(Tool!U$14:U$147,MATCH($B6,Tool!$B$14:$B$147,0),1)<>"",INDEX(Tool!U$14:U$147,MATCH($B6,Tool!$B$14:$B$147,0),1),"") ->  | G6: =IF(INDEX(Tool!V$14:V$147,MATCH($B6,Tool!$B$14:$B$147,0),1)<>"",INDEX(Tool!V$14:V$147,MATCH($B6,Tool!$B$14:$B$147,0),1),"") ->  | H6: =IF(INDEX(Tool!W$14:W$147,MATCH($B6,Tool!$B$14:$B$147,0),1)<>"",INDEX(Tool!W$14:W$147,MATCH($B6,Tool!$B$14:$B$147,0),1),"") ->  | I6: =IF(INDEX(Tool!X$14:X$147,MATCH($B6,Tool!$B$14:$B$147,0),1)<>"",INDEX(Tool!X$14:X$147,MATCH($B6,Tool!$B$14:$B$147,0),1),"") ->  | K6: =IF(INDEX(Tool!F$14:F$147,MATCH($B6,Tool!$B$14:$B$147,0),1)<>"",INDEX(Tool!F$14:F$147,MATCH($B6,Tool!$B$14:$B$147,0),1),"") ->  | L6: =IF(J6<>"",K6*J6,"") -> 
B7: I | C7: =INDEX(Tool!C$14:C$147,MATCH($B7,Tool!$B$14:$B$147,0),1) -> Public sector capacity and experience | E7: =IF(INDEX(Tool!T$14:T$147,MATCH($B7,Tool!$B$14:$B$147,0),1)<>"",INDEX(Tool!T$14:T$147,MATCH($B7,Tool!$B$14:$B$147,0),1),"") ->  | F7: =IF(INDEX(Tool!U$14:U$147,MATCH($B7,Tool!$B$14:$B$147,0),1)<>"",INDEX(Tool!U$14:U$147,MATCH($B7,Tool!$B$14:$B$147,0),1),"") ->  | G7: =IF(INDEX(Tool!V$14:V$147,MATCH($B7,Tool!$B$14:$B$147,0),1)<>"",INDEX(Tool!V$14:V$147,MATCH($B7,Tool!$B$14:$B$147,0),1),"") ->  | H7: =IF(INDEX(Tool!W$14:W$147,MATCH($B7,Tool!$B$14:$B$147,0),1)<>"",INDEX(Tool!W$14:W$147,MATCH($B7,Tool!$B$14:$B$147,0),1),"") ->  | I7: =IF(INDEX(Tool!X$14:X$147,MATCH($B7,Tool!$B$14:$B$147,0),1)<>"",INDEX(Tool!X$14:X$147,MATCH($B7,Tool!$B$14:$B$147,0),1),"") ->  | K7: =IF(INDEX(Tool!F$14:F$147,MATCH($B7,Tool!$B$14:$B$147,0),1)<>"",INDEX(Tool!F$14:F$147,MATCH($B7,Tool!$B$14:$B$147,0),1),"") -> 
B8: =MAX(B$6:B7)+1 -> 1 | C8: =INDEX(Tool!C$14:C$147,MATCH($B8,Tool!$B$14:$B$147,0),1) -> Does the sponsoring entity have the capabilities to procure PPPs? | E8: =IF(INDEX(Tool!T$14:T$147,MATCH($B8,Tool!$B$14:$B$147,0),1)<>"",INDEX(Tool!T$14:T$147,MATCH($B8,Tool!$B$14:$B$147,0),1),"") -> No capabilities | F8: =IF(INDEX(Tool!U$14:U$147,MATCH($B8,Tool!$B$14:$B$147,0),1)<>"",INDEX(Tool!U$14:U$147,MATCH($B8,Tool!$B$14:$B$147,0),1),"") -> Very little capability | G8: =IF(INDEX(Tool!V$14:V$147,MATCH($B8,Tool!$B$14:$B$147,0),1)<>"",INDEX(Tool!V$14:V$147,MATCH($B8,Tool!$B$14:$B$147,0),1),"") -> Some capabilities | H8: =IF(INDEX(Tool!W$14:W$147,MATCH($B8,Tool!$B$14:$B$147,0),1)<>"",INDEX(Tool!W$14:W$147,MATCH($B8,Tool!$B$14:$B$147,0),1),"") -> Good capability | I8: =IF(INDEX(Tool!X$14:X$147,MATCH($B8,Tool!$B$14:$B$147,0),1)<>"",INDEX(Tool!X$14:X$147,MATCH($B8,Tool!$B$14:$B$147,0),1),"") -> Full set of capabilities | K8: =IF(INDEX(Tool!F$14:F$147,MATCH($B8,Tool!$B$14:$B$147,0),1)<>"",INDEX(Tool!F$14:F$147,MATCH($B8,Tool!$B$14:$B$147,0),1),"") -> 75%
B9: =MAX(B$6:B8)+1 -> 2 | C9: =INDEX(Tool!C$14:C$147,MATCH($B9,Tool!$B$14:$B$147,0),1) -> Does the sponsoring entity have the capabilities to manage and monitor a PPP contract? | E9: =IF(INDEX(Tool!T$14:T$147,MATCH($B9,Tool!$B$14:$B$147,0),1)<>"",INDEX(Tool!T$14:T$147,MATCH($B9,Tool!$B$14:$B$147,0),1),"") -> No capabilities | F9: =IF(INDEX(Tool!U$14:U$147,MATCH($B9,Tool!$B$14:$B$147,0),1)<>"",INDEX(Tool!U$14:U$147,MATCH($B9,Tool!$B$14:$B$147,0),1),"") -> Very little capability | G9: =IF(INDEX(Tool!V$14:V$147,MATCH($B9,Tool!$B$14:$B$147,0),1)<>"",INDEX(Tool!V$14:V$147,MATCH($B9,Tool!$B$14:$B$147,0),1),"") -> Some capabilities | H9: =IF(INDEX(Tool!W$14:W$147,MATCH($B9,Tool!$B$14:$B$147,0),1)<>"",INDEX(Tool!W$14:W$147,MATCH($B9,Tool!$B$14:$B$147,0),1),"") -> Good capability | I9: =IF(INDEX(Tool!X$14:X$147,MATCH($B9,Tool!$B$14:$B$147,0),1)<>"",INDEX(Tool!X$14:X$147,MATCH($B9,Tool!$B$14:$B$147,0),1),"") -> Full set of capabilities | K9: =IF(INDEX(Tool!F$14:F$147,MATCH($B9,Tool!$B$14:$B$147,0),1)<>"",INDEX(Tool!F$14:F$147,MATCH($B9,Tool!$B$14:$B$147,0),1),"") -> 75%
B10: =MAX(B$6:B9)+1 -> 3 | C10: =INDEX(Tool!C$14:C$147,MATCH($B10,Tool!$B$14:$B$147,0),1) -> Does the sponsoring entity have previous experience with PPPs? | E10: =IF(INDEX(Tool!T$14:T$147,MATCH($B10,Tool!$B$14:$B$147,0),1)<>"",INDEX(Tool!T$14:T$147,MATCH($B10,Tool!$B$14:$B$147,0),1),"") -> No previous PPP experience | F10: =IF(INDEX(Tool!U$14:U$147,MATCH($B10,Tool!$B$14:$B$147,0),1)<>"",INDEX(Tool!U$14:U$147,MATCH($B10,Tool!$B$14:$B$147,0),1),"") -> Some experience with dissimilar PPPs | G10: =IF(INDEX(Tool!V$14:V$147,MATCH($B10,Tool!$B$14:$B$147,0),1)<>"",INDEX(Tool!V$14:V$147,MATCH($B10,Tool!$B$14:$B$147,0),1),"") -> Limited experience (1 project), for a similar PPP | H10: =IF(INDEX(Tool!W$14:W$147,MATCH($B10,Tool!$B$14:$B$147,0),1)<>"",INDEX(Tool!W$14:W$147,MATCH($B10,Tool!$B$14:$B$147,0),1),"") -> Significant experience (2-4 projects), including similar PPPs | I10: =IF(INDEX(Tool!X$14:X$147,MATCH($B10,Tool!$B$14:$B$147,0),1)<>"",INDEX(Tool!X$14:X$147,MATCH($B10,Tool!$B$14:$B$147,0),1),"") -> Extensive experience (5+ projects), including similar PPPs | K10: =IF(INDEX(Tool!F$14:F$147,MATCH($B10,Tool!$B$14:$B$147,0),1)<>"",INDEX(Tool!F$14:F$147,MATCH($B10,Tool!$B$14:$B$147,0),1),"") -> 75%
B11: II | C11: =INDEX(Tool!C$14:C$147,MATCH($B11,Tool!$B$14:$B$147,0),1) -> Public sector funding | E11: =IF(INDEX(Tool!T$14:T$147,MATCH($B11,Tool!$B$14:$B$147,0),1)<>"",INDEX(Tool!T$14:T$147,MATCH($B11,Tool!$B$14:$B$147,0),1),"") ->  | F11: =IF(INDEX(Tool!U$14:U$147,MATCH($B11,Tool!$B$14:$B$147,0),1)<>"",INDEX(Tool!U$14:U$147,MATCH($B11,Tool!$B$14:$B$147,0),1),"") ->  | G11: =IF(INDEX(Tool!V$14:V$147,MATCH($B11,Tool!$B$14:$B$147,0),1)<>"",INDEX(Tool!V$14:V$147,MATCH($B11,Tool!$B$14:$B$147,0),1),"") ->  | H11: =IF(INDEX(Tool!W$14:W$147,MATCH($B11,Tool!$B$14:$B$147,0),1)<>"",INDEX(Tool!W$14:W$147,MATCH($B11,Tool!$B$14:$B$147,0),1),"") ->  | I11: =IF(INDEX(Tool!X$14:X$147,MATCH($B11,Tool!$B$14:$B$147,0),1)<>"",INDEX(Tool!X$14:X$147,MATCH($B11,Tool!$B$14:$B$147,0),1),"") ->  | K11: =IF(INDEX(Tool!F$14:F$147,MATCH($B11,Tool!$B$14:$B$147,0),1)<>"",INDEX(Tool!F$14:F$147,MATCH($B11,Tool!$B$14:$B$147,0),1),"") -> 
B12: =MAX(B$6:B11)+1 -> 4 | C12: =INDEX(Tool!C$14:C$147,MATCH($B12,Tool!$B$14:$B$147,0),1) -> Is funding assistance available for project preparation? | E12: =IF(INDEX(Tool!T$14:T$147,MATCH($B12,Tool!$B$14:$B$147,0),1)<>"",INDEX(Tool!T$14:T$147,MATCH($B12,Tool!$B$14:$B$147,0),1),"") -> Not at all | F12: =IF(INDEX(Tool!U$14:U$147,MATCH($B12,Tool!$B$14:$B$147,0),1)<>"",INDEX(Tool!U$14:U$147,MATCH($B12,Tool!$B$14:$B$147,0),1),"") -> Unlikely | G12: =IF(INDEX(Tool!V$14:V$147,MATCH($B12,Tool!$B$14:$B$147,0),1)<>"",INDEX(Tool!V$14:V$147,MATCH($B12,Tool!$B$14:$B$147,0),1),"") -> Possible | H12: =IF(INDEX(Tool!W$14:W$147,MATCH($B12,Tool!$B$14:$B$147,0),1)<>"",INDEX(Tool!W$14:W$147,MATCH($B12,Tool!$B$14:$B$147,0),1),"") -> Likely | I12: =IF(INDEX(Tool!X$14:X$147,MATCH($B12,Tool!$B$14:$B$147,0),1)<>"",INDEX(Tool!X$14:X$147,MATCH($B12,Tool!$B$14:$B$147,0),1),"") -> Guaranteed | K12: =IF(INDEX(Tool!F$14:F$147,MATCH($B12,Tool!$B$14:$B$147,0),1)<>"",INDEX(Tool!F$14:F$147,MATCH($B12,Tool!$B$14:$B$147,0),1),"") -> 25%
B13: =MAX(B$6:B12)+1 -> 5 | C13: =INDEX(Tool!C$14:C$147,MATCH($B13,Tool!$B$14:$B$147,0),1) -> Is viability gap funding available for the PPP project? | E13: =IF(INDEX(Tool!T$14:T$147,MATCH($B13,Tool!$B$14:$B$147,0),1)<>"",INDEX(Tool!T$14:T$147,MATCH($B13,Tool!$B$14:$B$147,0),1),"") -> Not at all | F13: =IF(INDEX(Tool!U$14:U$147,MATCH($B13,Tool!$B$14:$B$147,0),1)<>"",INDEX(Tool!U$14:U$147,MATCH($B13,Tool!$B$14:$B$147,0),1),"") -> Unlikely | G13: =IF(INDEX(Tool!V$14:V$147,MATCH($B13,Tool!$B$14:$B$147,0),1)<>"",INDEX(Tool!V$14:V$147,MATCH($B13,Tool!$B$14:$B$147,0),1),"") -> Possible | H13: =IF(INDEX(Tool!W$14:W$147,MATCH($B13,Tool!$B$14:$B$147,0),1)<>"",INDEX(Tool!W$14:W$147,MATCH($B13,Tool!$B$14:$B$147,0),1),"") -> Likely | I13: =IF(INDEX(Tool!X$14:X$147,MATCH($B13,Tool!$B$14:$B$147,0),1)<>"",INDEX(Tool!X$14:X$147,MATCH($B13,Tool!$B$14:$B$147,0),1),"") -> Guaranteed | K13: =IF(INDEX(Tool!F$14:F$147,MATCH($B13,Tool!$B$14:$B$147,0),1)<>"",INDEX(Tool!F$14:F$147,MATCH($B13,Tool!$B$14:$B$147,0),1),"") -> 75%
B14: =MAX(B$6:B13)+1 -> 6 | C14: =INDEX(Tool!C$14:C$147,MATCH($B14,Tool!$B$14:$B$147,0),1) -> Is the PPP project eligible for significant funding from other sources? | E14: =IF(INDEX(Tool!T$14:T$147,MATCH($B14,Tool!$B$14:$B$147,0),1)<>"",INDEX(Tool!T$14:T$147,MATCH($B14,Tool!$B$14:$B$147,0),1),"") -> Not at all | F14: =IF(INDEX(Tool!U$14:U$147,MATCH($B14,Tool!$B$14:$B$147,0),1)<>"",INDEX(Tool!U$14:U$147,MATCH($B14,Tool!$B$14:$B$147,0),1),"") -> Unlikely | G14: =IF(INDEX(Tool!V$14:V$147,MATCH($B14,Tool!$B$14:$B$147,0),1)<>"",INDEX(Tool!V$14:V$147,MATCH($B14,Tool!$B$14:$B$147,0),1),"") -> Possible | H14: =IF(INDEX(Tool!W$14:W$147,MATCH($B14,Tool!$B$14:$B$147,0),1)<>"",INDEX(Tool!W$14:W$147,MATCH($B14,Tool!$B$14:$B$147,0),1),"") -> Likely | I14: =IF(INDEX(Tool!X$14:X$147,MATCH($B14,Tool!$B$14:$B$147,0),1)<>"",INDEX(Tool!X$14:X$147,MATCH($B14,Tool!$B$14:$B$147,0),1),"") -> Guaranteed | K14: =IF(INDEX(Tool!F$14:F$147,MATCH($B14,Tool!$B$14:$B$147,0),1)<>"",INDEX(Tool!F$14:F$147,MATCH($B14,Tool!$B$14:$B$147,0),1),"") -> 50%
B15: III | C15: =INDEX(Tool!C$14:C$147,MATCH($B15,Tool!$B$14:$B$147,0),1) -> Private sector capability and appetite | E15: =IF(INDEX(Tool!T$14:T$147,MATCH($B15,Tool!$B$14:$B$147,0),1)<>"",INDEX(Tool!T$14:T$147,MATCH($B15,Tool!$B$14:$B$147,0),1),"") ->  | F15: =IF(INDEX(Tool!U$14:U$147,MATCH($B15,Tool!$B$14:$B$147,0),1)<>"",INDEX(Tool!U$14:U$147,MATCH($B15,Tool!$B$14:$B$147,0),1),"") ->  | G15: =IF(INDEX(Tool!V$14:V$147,MATCH($B15,Tool!$B$14:$B$147,0),1)<>"",INDEX(Tool!V$14:V$147,MATCH($B15,Tool!$B$14:$B$147,0),1),"") ->  | H15: =IF(INDEX(Tool!W$14:W$147,MATCH($B15,Tool!$B$14:$B$147,0),1)<>"",INDEX(Tool!W$14:W$147,MATCH($B15,Tool!$B$14:$B$147,0),1),"") ->  | I15: =IF(INDEX(Tool!X$14:X$147,MATCH($B15,Tool!$B$14:$B$147,0),1)<>"",INDEX(Tool!X$14:X$147,MATCH($B15,Tool!$B$14:$B$147,0),1),"") ->  | K15: =IF(INDEX(Tool!F$14:F$147,MATCH($B15,Tool!$B$14:$B$147,0),1)<>"",INDEX(Tool!F$14:F$147,MATCH($B15,Tool!$B$14:$B$147,0),1),"") -> 
B16: =MAX(B$6:B15)+1 -> 7 | C16: =INDEX(Tool!C$14:C$147,MATCH($B16,Tool!$B$14:$B$147,0),1) -> Are multiple firms active in the project sector and likely to be interested? | E16: =IF(INDEX(Tool!T$14:T$147,MATCH($B16,Tool!$B$14:$B$147,0),1)<>"",INDEX(Tool!T$14:T$147,MATCH($B16,Tool!$B$14:$B$147,0),1),"") -> No interest expected | F16: =IF(INDEX(Tool!U$14:U$147,MATCH($B16,Tool!$B$14:$B$147,0),1)<>"",INDEX(Tool!U$14:U$147,MATCH($B16,Tool!$B$14:$B$147,0),1),"") -> Extent of interest among qualified firms is not yet known | G16: =IF(INDEX(Tool!V$14:V$147,MATCH($B16,Tool!$B$14:$B$147,0),1)<>"",INDEX(Tool!V$14:V$147,MATCH($B16,Tool!$B$14:$B$147,0),1),"") -> Some interest expected | H16: =IF(INDEX(Tool!W$14:W$147,MATCH($B16,Tool!$B$14:$B$147,0),1)<>"",INDEX(Tool!W$14:W$147,MATCH($B16,Tool!$B$14:$B$147,0),1),"") -> 5+ qualified firms are expected to be interested | I16: =IF(INDEX(Tool!X$14:X$147,MATCH($B16,Tool!$B$14:$B$147,0),1)<>"",INDEX(Tool!X$14:X$147,MATCH($B16,Tool!$B$14:$B$147,0),1),"") -> 5+ qualified firms have competed for similar opportunities | K16: =IF(INDEX(Tool!F$14:F$147,MATCH($B16,Tool!$B$14:$B$147,0),1)<>"",INDEX(Tool!F$14:F$147,MATCH($B16,Tool!$B$14:$B$147,0),1),"") -> 100%
B17: =MAX(B$6:B16)+1 -> 8 | C17: =INDEX(Tool!C$14:C$147,MATCH($B17,Tool!$B$14:$B$147,0),1) -> Have similar PPP projects been successfully financed in Afghanistan? | E17: =IF(INDEX(Tool!T$14:T$147,MATCH($B17,Tool!$B$14:$B$147,0),1)<>"",INDEX(Tool!T$14:T$147,MATCH($B17,Tool!$B$14:$B$147,0),1),"") -> No PPP projects recently financed | F17: =IF(INDEX(Tool!U$14:U$147,MATCH($B17,Tool!$B$14:$B$147,0),1)<>"",INDEX(Tool!U$14:U$147,MATCH($B17,Tool!$B$14:$B$147,0),1),"") -> No similar PPP projects recently financed | G17: =IF(INDEX(Tool!V$14:V$147,MATCH($B17,Tool!$B$14:$B$147,0),1)<>"",INDEX(Tool!V$14:V$147,MATCH($B17,Tool!$B$14:$B$147,0),1),"") -> Dissimilar PPP projects financed in last 2 years | H17: =IF(INDEX(Tool!W$14:W$147,MATCH($B17,Tool!$B$14:$B$147,0),1)<>"",INDEX(Tool!W$14:W$147,MATCH($B17,Tool!$B$14:$B$147,0),1),"") -> At least one similar PPP project successfully financed in last 2 years | I17: =IF(INDEX(Tool!X$14:X$147,MATCH($B17,Tool!$B$14:$B$147,0),1)<>"",INDEX(Tool!X$14:X$147,MATCH($B17,Tool!$B$14:$B$147,0),1),"") -> Multiple similar PPP projects successfully financed in last 2 years | K17: =IF(INDEX(Tool!F$14:F$147,MATCH($B17,Tool!$B$14:$B$147,0),1)<>"",INDEX(Tool!F$14:F$147,MATCH($B17,Tool!$B$14:$B$147,0),1),"") -> 100% | L17: =IF(J17<>"",K17*J17,"") -> 
B18: =MAX(B$6:B17)+1 -> 9 | C18: =INDEX(Tool!C$14:C$147,MATCH($B18,Tool!$B$14:$B$147,0),1) -> Have similar PPP projects been successfully financed in countries similar to Afghanistan? | E18: =IF(INDEX(Tool!T$14:T$147,MATCH($B18,Tool!$B$14:$B$147,0),1)<>"",INDEX(Tool!T$14:T$147,MATCH($B18,Tool!$B$14:$B$147,0),1),"") -> No PPP projects recently financed | F18: =IF(INDEX(Tool!U$14:U$147,MATCH($B18,Tool!$B$14:$B$147,0),1)<>"",INDEX(Tool!U$14:U$147,MATCH($B18,Tool!$B$14:$B$147,0),1),"") -> No similar PPP projects recently financed | G18: =IF(INDEX(Tool!V$14:V$147,MATCH($B18,Tool!$B$14:$B$147,0),1)<>"",INDEX(Tool!V$14:V$147,MATCH($B18,Tool!$B$14:$B$147,0),1),"") -> Somewhat similar PPP projects financed in last 2 years | H18: =IF(INDEX(Tool!W$14:W$147,MATCH($B18,Tool!$B$14:$B$147,0),1)<>"",INDEX(Tool!W$14:W$147,MATCH($B18,Tool!$B$14:$B$147,0),1),"") -> At least one very similar PPP project successfully financed in last 2 years | I18: =IF(INDEX(Tool!X$14:X$147,MATCH($B18,Tool!$B$14:$B$147,0),1)<>"",INDEX(Tool!X$14:X$147,MATCH($B18,Tool!$B$14:$B$147,0),1),"") -> Multiple very similar PPP projects successfully financed in last 2 years | K18: =IF(INDEX(Tool!F$14:F$147,MATCH($B18,Tool!$B$14:$B$147,0),1)<>"",INDEX(Tool!F$14:F$147,MATCH($B18,Tool!$B$14:$B$147,0),1),"") -> 75%
B19: B | C19: =INDEX(Tool!C$14:C$147,MATCH($B19,Tool!$B$14:$B$147,0),1) -> How suitable is the project for PPP? | E19: =IF(INDEX(Tool!T$14:T$147,MATCH($B19,Tool!$B$14:$B$147,0),1)<>"",INDEX(Tool!T$14:T$147,MATCH($B19,Tool!$B$14:$B$147,0),1),"") ->  | F19: =IF(INDEX(Tool!U$14:U$147,MATCH($B19,Tool!$B$14:$B$147,0),1)<>"",INDEX(Tool!U$14:U$147,MATCH($B19,Tool!$B$14:$B$147,0),1),"") ->  | G19: =IF(INDEX(Tool!V$14:V$147,MATCH($B19,Tool!$B$14:$B$147,0),1)<>"",INDEX(Tool!V$14:V$147,MATCH($B19,Tool!$B$14:$B$147,0),1),"") ->  | H19: =IF(INDEX(Tool!W$14:W$147,MATCH($B19,Tool!$B$14:$B$147,0),1)<>"",INDEX(Tool!W$14:W$147,MATCH($B19,Tool!$B$14:$B$147,0),1),"") ->  | I19: =IF(INDEX(Tool!X$14:X$147,MATCH($B19,Tool!$B$14:$B$147,0),1)<>"",INDEX(Tool!X$14:X$147,MATCH($B19,Tool!$B$14:$B$147,0),1),"") ->  | K19: =IF(INDEX(Tool!F$14:F$147,MATCH($B19,Tool!$B$14:$B$147,0),1)<>"",INDEX(Tool!F$14:F$147,MATCH($B19,Tool!$B$14:$B$147,0),1),"") -> 
B20: IV | C20: =INDEX(Tool!C$14:C$147,MATCH($B20,Tool!$B$14:$B$147,0),1) -> Key project characteristics | E20: =IF(INDEX(Tool!T$14:T$147,MATCH($B20,Tool!$B$14:$B$147,0),1)<>"",INDEX(Tool!T$14:T$147,MATCH($B20,Tool!$B$14:$B$147,0),1),"") ->  | F20: =IF(INDEX(Tool!U$14:U$147,MATCH($B20,Tool!$B$14:$B$147,0),1)<>"",INDEX(Tool!U$14:U$147,MATCH($B20,Tool!$B$14:$B$147,0),1),"") ->  | G20: =IF(INDEX(Tool!V$14:V$147,MATCH($B20,Tool!$B$14:$B$147,0),1)<>"",INDEX(Tool!V$14:V$147,MATCH($B20,Tool!$B$14:$B$147,0),1),"") ->  | H20: =IF(INDEX(Tool!W$14:W$147,MATCH($B20,Tool!$B$14:$B$147,0),1)<>"",INDEX(Tool!W$14:W$147,MATCH($B20,Tool!$B$14:$B$147,0),1),"") ->  | I20: =IF(INDEX(Tool!X$14:X$147,MATCH($B20,Tool!$B$14:$B$147,0),1)<>"",INDEX(Tool!X$14:X$147,MATCH($B20,Tool!$B$14:$B$147,0),1),"") ->  | K20: =IF(INDEX(Tool!F$14:F$147,MATCH($B20,Tool!$B$14:$B$147,0),1)<>"",INDEX(Tool!F$14:F$147,MATCH($B20,Tool!$B$14:$B$147,0),1),"") -> 
B21: =MAX(B$6:B20)+1 -> 10 | C21: =INDEX(Tool!C$14:C$147,MATCH($B21,Tool!$B$14:$B$147,0),1) -> What is the project value? | E21: =IF(INDEX(Tool!T$14:T$147,MATCH($B21,Tool!$B$14:$B$147,0),1)<>"",INDEX(Tool!T$14:T$147,MATCH($B21,Tool!$B$14:$B$147,0),1),"") -> Project is less than USD 5m | F21: =IF(INDEX(Tool!U$14:U$147,MATCH($B21,Tool!$B$14:$B$147,0),1)<>"",INDEX(Tool!U$14:U$147,MATCH($B21,Tool!$B$14:$B$147,0),1),"") -> Project is between USD 5m and 20m | G21: =IF(INDEX(Tool!V$14:V$147,MATCH($B21,Tool!$B$14:$B$147,0),1)<>"",INDEX(Tool!V$14:V$147,MATCH($B21,Tool!$B$14:$B$147,0),1),"") -> Project is between USD 20m and 100m | H21: =IF(INDEX(Tool!W$14:W$147,MATCH($B21,Tool!$B$14:$B$147,0),1)<>"",INDEX(Tool!W$14:W$147,MATCH($B21,Tool!$B$14:$B$147,0),1),"") -> Project is between USD 100m and 300m | I21: =IF(INDEX(Tool!X$14:X$147,MATCH($B21,Tool!$B$14:$B$147,0),1)<>"",INDEX(Tool!X$14:X$147,MATCH($B21,Tool!$B$14:$B$147,0),1),"") -> Project is greater than USD 300m | K21: =IF(INDEX(Tool!F$14:F$147,MATCH($B21,Tool!$B$14:$B$147,0),1)<>"",INDEX(Tool!F$14:F$147,MATCH($B21,Tool!$B$14:$B$147,0),1),"") -> 75%
B22: =MAX(B$6:B21)+1 -> 11 | C22: =INDEX(Tool!C$14:C$147,MATCH($B22,Tool!$B$14:$B$147,0),1) -> What is the expected project duration (including construction)? | E22: =IF(INDEX(Tool!T$14:T$147,MATCH($B22,Tool!$B$14:$B$147,0),1)<>"",INDEX(Tool!T$14:T$147,MATCH($B22,Tool!$B$14:$B$147,0),1),"") -> Less than five years | F22: =IF(INDEX(Tool!U$14:U$147,MATCH($B22,Tool!$B$14:$B$147,0),1)<>"",INDEX(Tool!U$14:U$147,MATCH($B22,Tool!$B$14:$B$147,0),1),"") -> 5 to 10 years | G22: =IF(INDEX(Tool!V$14:V$147,MATCH($B22,Tool!$B$14:$B$147,0),1)<>"",INDEX(Tool!V$14:V$147,MATCH($B22,Tool!$B$14:$B$147,0),1),"") -> 10 to 15 years | H22: =IF(INDEX(Tool!W$14:W$147,MATCH($B22,Tool!$B$14:$B$147,0),1)<>"",INDEX(Tool!W$14:W$147,MATCH($B22,Tool!$B$14:$B$147,0),1),"") -> 15 to 20 years | I22: =IF(INDEX(Tool!X$14:X$147,MATCH($B22,Tool!$B$14:$B$147,0),1)<>"",INDEX(Tool!X$14:X$147,MATCH($B22,Tool!$B$14:$B$147,0),1),"") -> > 20 years | K22: =IF(INDEX(Tool!F$14:F$147,MATCH($B22,Tool!$B$14:$B$147,0),1)<>"",INDEX(Tool!F$14:F$147,MATCH($B22,Tool!$B$14:$B$147,0),1),"") -> 75%
B23: =MAX(B$6:B22)+1 -> 12 | C23: =INDEX(Tool!C$14:C$147,MATCH($B23,Tool!$B$14:$B$147,0),1) -> Are outputs easily definable, measurable and verifiable? | E23: =IF(INDEX(Tool!T$14:T$147,MATCH($B23,Tool!$B$14:$B$147,0),1)<>"",INDEX(Tool!T$14:T$147,MATCH($B23,Tool!$B$14:$B$147,0),1),"") -> No ability to define, measure or verify outputs | F23: =IF(INDEX(Tool!U$14:U$147,MATCH($B23,Tool!$B$14:$B$147,0),1)<>"",INDEX(Tool!U$14:U$147,MATCH($B23,Tool!$B$14:$B$147,0),1),"") -> Multiple outputs, difficult to define and/or measure and/or verify | G23: =IF(INDEX(Tool!V$14:V$147,MATCH($B23,Tool!$B$14:$B$147,0),1)<>"",INDEX(Tool!V$14:V$147,MATCH($B23,Tool!$B$14:$B$147,0),1),"") -> Few outputs, difficult to define and/or measure and/or verify | H23: =IF(INDEX(Tool!W$14:W$147,MATCH($B23,Tool!$B$14:$B$147,0),1)<>"",INDEX(Tool!W$14:W$147,MATCH($B23,Tool!$B$14:$B$147,0),1),"") -> Multiple outputs, each easily definable, measureable and verifiable | I23: =IF(INDEX(Tool!X$14:X$147,MATCH($B23,Tool!$B$14:$B$147,0),1)<>"",INDEX(Tool!X$14:X$147,MATCH($B23,Tool!$B$14:$B$147,0),1),"") -> Few outputs, each easily definable, measureable and verifiable | K23: =IF(INDEX(Tool!F$14:F$147,MATCH($B23,Tool!$B$14:$B$147,0),1)<>"",INDEX(Tool!F$14:F$147,MATCH($B23,Tool!$B$14:$B$147,0),1),"") -> 100% | L23: =IF(J23<>"",K23*J23,"") -> 
B24: =MAX(B$6:B23)+1 -> 13 | C24: =INDEX(Tool!C$14:C$147,MATCH($B24,Tool!$B$14:$B$147,0),1) -> How complex is the project? | E24: =IF(INDEX(Tool!T$14:T$147,MATCH($B24,Tool!$B$14:$B$147,0),1)<>"",INDEX(Tool!T$14:T$147,MATCH($B24,Tool!$B$14:$B$147,0),1),"") -> Very complex | F24: =IF(INDEX(Tool!U$14:U$147,MATCH($B24,Tool!$B$14:$B$147,0),1)<>"",INDEX(Tool!U$14:U$147,MATCH($B24,Tool!$B$14:$B$147,0),1),"") -> Challenging | G24: =IF(INDEX(Tool!V$14:V$147,MATCH($B24,Tool!$B$14:$B$147,0),1)<>"",INDEX(Tool!V$14:V$147,MATCH($B24,Tool!$B$14:$B$147,0),1),"") -> Middle | H24: =IF(INDEX(Tool!W$14:W$147,MATCH($B24,Tool!$B$14:$B$147,0),1)<>"",INDEX(Tool!W$14:W$147,MATCH($B24,Tool!$B$14:$B$147,0),1),"") -> Fairly simple | I24: =IF(INDEX(Tool!X$14:X$147,MATCH($B24,Tool!$B$14:$B$147,0),1)<>"",INDEX(Tool!X$14:X$147,MATCH($B24,Tool!$B$14:$B$147,0),1),"") -> Straight forward | K24: =IF(INDEX(Tool!F$14:F$147,MATCH($B24,Tool!$B$14:$B$147,0),1)<>"",INDEX(Tool!F$14:F$147,MATCH($B24,Tool!$B$14:$B$147,0),1),"") -> 75%
B25: =MAX(B$6:B24)+1 -> 14 | C25: =INDEX(Tool!C$14:C$147,MATCH($B25,Tool!$B$14:$B$147,0),1) -> Are operational (non-construction) costs are a large part of the total costs of the project? | E25: =IF(INDEX(Tool!T$14:T$147,MATCH($B25,Tool!$B$14:$B$147,0),1)<>"",INDEX(Tool!T$14:T$147,MATCH($B25,Tool!$B$14:$B$147,0),1),"") -> Operational costs are almost non-existent relative to construction costs | F25: =IF(INDEX(Tool!U$14:U$147,MATCH($B25,Tool!$B$14:$B$147,0),1)<>"",INDEX(Tool!U$14:U$147,MATCH($B25,Tool!$B$14:$B$147,0),1),"") -> Operational costs are significantly lower than construction costs | G25: =IF(INDEX(Tool!V$14:V$147,MATCH($B25,Tool!$B$14:$B$147,0),1)<>"",INDEX(Tool!V$14:V$147,MATCH($B25,Tool!$B$14:$B$147,0),1),"") -> Operational costs are similar to construction costs | H25: =IF(INDEX(Tool!W$14:W$147,MATCH($B25,Tool!$B$14:$B$147,0),1)<>"",INDEX(Tool!W$14:W$147,MATCH($B25,Tool!$B$14:$B$147,0),1),"") -> Operational costs are higher than construction costs | I25: =IF(INDEX(Tool!X$14:X$147,MATCH($B25,Tool!$B$14:$B$147,0),1)<>"",INDEX(Tool!X$14:X$147,MATCH($B25,Tool!$B$14:$B$147,0),1),"") -> Operational costs greatly exceed construction costs | K25: =IF(INDEX(Tool!F$14:F$147,MATCH($B25,Tool!$B$14:$B$147,0),1)<>"",INDEX(Tool!F$14:F$147,MATCH($B25,Tool!$B$14:$B$147,0),1),"") -> 75%
B26: =MAX(B$6:B25)+1 -> 15 | C26: =INDEX(Tool!C$14:C$147,MATCH($B26,Tool!$B$14:$B$147,0),1) -> Are there fixed time constraints on project award? | E26: =IF(INDEX(Tool!T$14:T$147,MATCH($B26,Tool!$B$14:$B$147,0),1)<>"",INDEX(Tool!T$14:T$147,MATCH($B26,Tool!$B$14:$B$147,0),1),"") -> Project must be awarded within 6 months | F26: =IF(INDEX(Tool!U$14:U$147,MATCH($B26,Tool!$B$14:$B$147,0),1)<>"",INDEX(Tool!U$14:U$147,MATCH($B26,Tool!$B$14:$B$147,0),1),"") -> Project must be awarded with 1 year | G26: =IF(INDEX(Tool!V$14:V$147,MATCH($B26,Tool!$B$14:$B$147,0),1)<>"",INDEX(Tool!V$14:V$147,MATCH($B26,Tool!$B$14:$B$147,0),1),"") -> Project must be awarded within 2 years | H26: =IF(INDEX(Tool!W$14:W$147,MATCH($B26,Tool!$B$14:$B$147,0),1)<>"",INDEX(Tool!W$14:W$147,MATCH($B26,Tool!$B$14:$B$147,0),1),"") -> Project must be awarded within 3 years | I26: =IF(INDEX(Tool!X$14:X$147,MATCH($B26,Tool!$B$14:$B$147,0),1)<>"",INDEX(Tool!X$14:X$147,MATCH($B26,Tool!$B$14:$B$147,0),1),"") -> No time constraints | K26: =IF(INDEX(Tool!F$14:F$147,MATCH($B26,Tool!$B$14:$B$147,0),1)<>"",INDEX(Tool!F$14:F$147,MATCH($B26,Tool!$B$14:$B$147,0),1),"") -> 50%
B27: =MAX(B$6:B26)+1 -> 16 | C27: =INDEX(Tool!C$14:C$147,MATCH($B27,Tool!$B$14:$B$147,0),1) -> How secure is the project location? | E27: =IF(INDEX(Tool!T$14:T$147,MATCH($B27,Tool!$B$14:$B$147,0),1)<>"",INDEX(Tool!T$14:T$147,MATCH($B27,Tool!$B$14:$B$147,0),1),"") -> Extreme security issues | F27: =IF(INDEX(Tool!U$14:U$147,MATCH($B27,Tool!$B$14:$B$147,0),1)<>"",INDEX(Tool!U$14:U$147,MATCH($B27,Tool!$B$14:$B$147,0),1),"") -> Serious security issues likely | G27: =IF(INDEX(Tool!V$14:V$147,MATCH($B27,Tool!$B$14:$B$147,0),1)<>"",INDEX(Tool!V$14:V$147,MATCH($B27,Tool!$B$14:$B$147,0),1),"") -> Some security issues likely | H27: =IF(INDEX(Tool!W$14:W$147,MATCH($B27,Tool!$B$14:$B$147,0),1)<>"",INDEX(Tool!W$14:W$147,MATCH($B27,Tool!$B$14:$B$147,0),1),"") -> Low risk of security issues | I27: =IF(INDEX(Tool!X$14:X$147,MATCH($B27,Tool!$B$14:$B$147,0),1)<>"",INDEX(Tool!X$14:X$147,MATCH($B27,Tool!$B$14:$B$147,0),1),"") -> No known security issues | K27: =IF(INDEX(Tool!F$14:F$147,MATCH($B27,Tool!$B$14:$B$147,0),1)<>"",INDEX(Tool!F$14:F$147,MATCH($B27,Tool!$B$14:$B$147,0),1),"") -> 100%
B28: =MAX(B$6:B27)+1 -> 17 | C28: =INDEX(Tool!C$14:C$147,MATCH($B28,Tool!$B$14:$B$147,0),1) -> Are staff and/or resources to be sourced locally or abroad? | E28: =IF(INDEX(Tool!T$14:T$147,MATCH($B28,Tool!$B$14:$B$147,0),1)<>"",INDEX(Tool!T$14:T$147,MATCH($B28,Tool!$B$14:$B$147,0),1),"") -> All foreign resources with prior capacity building required | F28: =IF(INDEX(Tool!U$14:U$147,MATCH($B28,Tool!$B$14:$B$147,0),1)<>"",INDEX(Tool!U$14:U$147,MATCH($B28,Tool!$B$14:$B$147,0),1),"") -> Local resources with prior capacity building required | G28: =IF(INDEX(Tool!V$14:V$147,MATCH($B28,Tool!$B$14:$B$147,0),1)<>"",INDEX(Tool!V$14:V$147,MATCH($B28,Tool!$B$14:$B$147,0),1),"") -> Foreign staff ready with local leadership | H28: =IF(INDEX(Tool!W$14:W$147,MATCH($B28,Tool!$B$14:$B$147,0),1)<>"",INDEX(Tool!W$14:W$147,MATCH($B28,Tool!$B$14:$B$147,0),1),"") -> Local staff ready with foreign leadership | I28: =IF(INDEX(Tool!X$14:X$147,MATCH($B28,Tool!$B$14:$B$147,0),1)<>"",INDEX(Tool!X$14:X$147,MATCH($B28,Tool!$B$14:$B$147,0),1),"") -> All local experts ready to go | K28: =IF(INDEX(Tool!F$14:F$147,MATCH($B28,Tool!$B$14:$B$147,0),1)<>"",INDEX(Tool!F$14:F$147,MATCH($B28,Tool!$B$14:$B$147,0),1),"") -> 50%
B29: =MAX(B$6:B28)+1 -> 18 | C29: =INDEX(Tool!C$14:C$147,MATCH($B29,Tool!$B$14:$B$147,0),1) -> Does the project require the development of new/advanced technology? | E29: =IF(INDEX(Tool!T$14:T$147,MATCH($B29,Tool!$B$14:$B$147,0),1)<>"",INDEX(Tool!T$14:T$147,MATCH($B29,Tool!$B$14:$B$147,0),1),"") -> Requires the development of new technologies | F29: =IF(INDEX(Tool!U$14:U$147,MATCH($B29,Tool!$B$14:$B$147,0),1)<>"",INDEX(Tool!U$14:U$147,MATCH($B29,Tool!$B$14:$B$147,0),1),"") -> Requires advanced technology | G29: =IF(INDEX(Tool!V$14:V$147,MATCH($B29,Tool!$B$14:$B$147,0),1)<>"",INDEX(Tool!V$14:V$147,MATCH($B29,Tool!$B$14:$B$147,0),1),"") -> Some advanced technology required | H29: =IF(INDEX(Tool!W$14:W$147,MATCH($B29,Tool!$B$14:$B$147,0),1)<>"",INDEX(Tool!W$14:W$147,MATCH($B29,Tool!$B$14:$B$147,0),1),"") -> Low amounts of easily implemented advanced technology required | I29: =IF(INDEX(Tool!X$14:X$147,MATCH($B29,Tool!$B$14:$B$147,0),1)<>"",INDEX(Tool!X$14:X$147,MATCH($B29,Tool!$B$14:$B$147,0),1),"") -> No new/advanced technology required | K29: =IF(INDEX(Tool!F$14:F$147,MATCH($B29,Tool!$B$14:$B$147,0),1)<>"",INDEX(Tool!F$14:F$147,MATCH($B29,Tool!$B$14:$B$147,0),1),"") -> 50%
B30: =MAX(B$6:B29)+1 -> 19 | C30: =INDEX(Tool!C$14:C$147,MATCH($B30,Tool!$B$14:$B$147,0),1) -> Is the project reliant on other projects yet to be constructed? | E30: =IF(INDEX(Tool!T$14:T$147,MATCH($B30,Tool!$B$14:$B$147,0),1)<>"",INDEX(Tool!T$14:T$147,MATCH($B30,Tool!$B$14:$B$147,0),1),"") -> Very reliant on projects that are likely to cause delays | F30: =IF(INDEX(Tool!U$14:U$147,MATCH($B30,Tool!$B$14:$B$147,0),1)<>"",INDEX(Tool!U$14:U$147,MATCH($B30,Tool!$B$14:$B$147,0),1),"") -> Reliant on projects that are due to be completed around the time of this PPP | G30: =IF(INDEX(Tool!V$14:V$147,MATCH($B30,Tool!$B$14:$B$147,0),1)<>"",INDEX(Tool!V$14:V$147,MATCH($B30,Tool!$B$14:$B$147,0),1),"") -> Reliant on projects that are likely to be completed well ahead of this PPP | H30: =IF(INDEX(Tool!W$14:W$147,MATCH($B30,Tool!$B$14:$B$147,0),1)<>"",INDEX(Tool!W$14:W$147,MATCH($B30,Tool!$B$14:$B$147,0),1),"") -> Minimal reliance on other projects | I30: =IF(INDEX(Tool!X$14:X$147,MATCH($B30,Tool!$B$14:$B$147,0),1)<>"",INDEX(Tool!X$14:X$147,MATCH($B30,Tool!$B$14:$B$147,0),1),"") -> Not at all reliant | K30: =IF(INDEX(Tool!F$14:F$147,MATCH($B30,Tool!$B$14:$B$147,0),1)<>"",INDEX(Tool!F$14:F$147,MATCH($B30,Tool!$B$14:$B$147,0),1),"") -> 50% | L30: =IF(J30<>"",K30*J30,"") -> 
B31: =MAX(B$6:B30)+1 -> 20 | C31: =INDEX(Tool!C$14:C$147,MATCH($B31,Tool!$B$14:$B$147,0),1) -> Does operation of the project rely heavily on a single supplier of goods or services? | E31: =IF(INDEX(Tool!T$14:T$147,MATCH($B31,Tool!$B$14:$B$147,0),1)<>"",INDEX(Tool!T$14:T$147,MATCH($B31,Tool!$B$14:$B$147,0),1),"") -> It is not clear where the supply is coming from | F31: =IF(INDEX(Tool!U$14:U$147,MATCH($B31,Tool!$B$14:$B$147,0),1)<>"",INDEX(Tool!U$14:U$147,MATCH($B31,Tool!$B$14:$B$147,0),1),"") -> Yes, without a long-term supply contract | G31: =IF(INDEX(Tool!V$14:V$147,MATCH($B31,Tool!$B$14:$B$147,0),1)<>"",INDEX(Tool!V$14:V$147,MATCH($B31,Tool!$B$14:$B$147,0),1),"") -> Long term supply contract, with either non-investment grade company or SOE without government guarantee | H31: =IF(INDEX(Tool!W$14:W$147,MATCH($B31,Tool!$B$14:$B$147,0),1)<>"",INDEX(Tool!W$14:W$147,MATCH($B31,Tool!$B$14:$B$147,0),1),"") -> Long term supply contract, with either investment grade company or SOE with government guarantee | I31: =IF(INDEX(Tool!X$14:X$147,MATCH($B31,Tool!$B$14:$B$147,0),1)<>"",INDEX(Tool!X$14:X$147,MATCH($B31,Tool!$B$14:$B$147,0),1),"") -> Not heavily reliant | K31: =IF(INDEX(Tool!F$14:F$147,MATCH($B31,Tool!$B$14:$B$147,0),1)<>"",INDEX(Tool!F$14:F$147,MATCH($B31,Tool!$B$14:$B$147,0),1),"") -> 75% | L31: =IF(J31<>"",K31*J31,"") -> 
B32: =MAX(B$6:B31)+1 -> 21 | C32: =INDEX(Tool!C$14:C$147,MATCH($B32,Tool!$B$14:$B$147,0),1) -> Would the physical infrastructure pass through multiple jurisdictions? | E32: =IF(INDEX(Tool!T$14:T$147,MATCH($B32,Tool!$B$14:$B$147,0),1)<>"",INDEX(Tool!T$14:T$147,MATCH($B32,Tool!$B$14:$B$147,0),1),"") -> Project in multiple jurisdictions with NO experience of shared PPPs | F32: =IF(INDEX(Tool!U$14:U$147,MATCH($B32,Tool!$B$14:$B$147,0),1)<>"",INDEX(Tool!U$14:U$147,MATCH($B32,Tool!$B$14:$B$147,0),1),"") -> Project in multiple jurisdictions with limited experience of shared PPPs | G32: =IF(INDEX(Tool!V$14:V$147,MATCH($B32,Tool!$B$14:$B$147,0),1)<>"",INDEX(Tool!V$14:V$147,MATCH($B32,Tool!$B$14:$B$147,0),1),"") -> Project in multiple jurisdictions with previous experience of shared PPPs | H32: =IF(INDEX(Tool!W$14:W$147,MATCH($B32,Tool!$B$14:$B$147,0),1)<>"",INDEX(Tool!W$14:W$147,MATCH($B32,Tool!$B$14:$B$147,0),1),"") -> Project in two jurisdictions | I32: =IF(INDEX(Tool!X$14:X$147,MATCH($B32,Tool!$B$14:$B$147,0),1)<>"",INDEX(Tool!X$14:X$147,MATCH($B32,Tool!$B$14:$B$147,0),1),"") -> Project fully contained within one jurisdiction | K32: =IF(INDEX(Tool!F$14:F$147,MATCH($B32,Tool!$B$14:$B$147,0),1)<>"",INDEX(Tool!F$14:F$147,MATCH($B32,Tool!$B$14:$B$147,0),1),"") -> 50%
B33: V | C33: =INDEX(Tool!C$14:C$147,MATCH($B33,Tool!$B$14:$B$147,0),1) -> Fit with development priorities | E33: =IF(INDEX(Tool!T$14:T$147,MATCH($B33,Tool!$B$14:$B$147,0),1)<>"",INDEX(Tool!T$14:T$147,MATCH($B33,Tool!$B$14:$B$147,0),1),"") ->  | F33: =IF(INDEX(Tool!U$14:U$147,MATCH($B33,Tool!$B$14:$B$147,0),1)<>"",INDEX(Tool!U$14:U$147,MATCH($B33,Tool!$B$14:$B$147,0),1),"") ->  | G33: =IF(INDEX(Tool!V$14:V$147,MATCH($B33,Tool!$B$14:$B$147,0),1)<>"",INDEX(Tool!V$14:V$147,MATCH($B33,Tool!$B$14:$B$147,0),1),"") ->  | H33: =IF(INDEX(Tool!W$14:W$147,MATCH($B33,Tool!$B$14:$B$147,0),1)<>"",INDEX(Tool!W$14:W$147,MATCH($B33,Tool!$B$14:$B$147,0),1),"") ->  | I33: =IF(INDEX(Tool!X$14:X$147,MATCH($B33,Tool!$B$14:$B$147,0),1)<>"",INDEX(Tool!X$14:X$147,MATCH($B33,Tool!$B$14:$B$147,0),1),"") ->  | K33: =IF(INDEX(Tool!F$14:F$147,MATCH($B33,Tool!$B$14:$B$147,0),1)<>"",INDEX(Tool!F$14:F$147,MATCH($B33,Tool!$B$14:$B$147,0),1),"") -> 
B34: =MAX(B$6:B33)+1 -> 22 | C34: =INDEX(Tool!C$14:C$147,MATCH($B34,Tool!$B$14:$B$147,0),1) -> Does the project fit into national development priorities? | E34: =IF(INDEX(Tool!T$14:T$147,MATCH($B34,Tool!$B$14:$B$147,0),1)<>"",INDEX(Tool!T$14:T$147,MATCH($B34,Tool!$B$14:$B$147,0),1),"") -> Not at all | F34: =IF(INDEX(Tool!U$14:U$147,MATCH($B34,Tool!$B$14:$B$147,0),1)<>"",INDEX(Tool!U$14:U$147,MATCH($B34,Tool!$B$14:$B$147,0),1),"") -> Low | G34: =IF(INDEX(Tool!V$14:V$147,MATCH($B34,Tool!$B$14:$B$147,0),1)<>"",INDEX(Tool!V$14:V$147,MATCH($B34,Tool!$B$14:$B$147,0),1),"") -> Medium | H34: =IF(INDEX(Tool!W$14:W$147,MATCH($B34,Tool!$B$14:$B$147,0),1)<>"",INDEX(Tool!W$14:W$147,MATCH($B34,Tool!$B$14:$B$147,0),1),"") -> High | I34: =IF(INDEX(Tool!X$14:X$147,MATCH($B34,Tool!$B$14:$B$147,0),1)<>"",INDEX(Tool!X$14:X$147,MATCH($B34,Tool!$B$14:$B$147,0),1),"") -> Top | K34: =IF(INDEX(Tool!F$14:F$147,MATCH($B34,Tool!$B$14:$B$147,0),1)<>"",INDEX(Tool!F$14:F$147,MATCH($B34,Tool!$B$14:$B$147,0),1),"") -> 75%
B35: =MAX(B$6:B34)+1 -> 23 | C35: =INDEX(Tool!C$14:C$147,MATCH($B35,Tool!$B$14:$B$147,0),1) -> Is the project part of a sector plan? | E35: =IF(INDEX(Tool!T$14:T$147,MATCH($B35,Tool!$B$14:$B$147,0),1)<>"",INDEX(Tool!T$14:T$147,MATCH($B35,Tool!$B$14:$B$147,0),1),"") -> Conflicts with sector plan | F35: =IF(INDEX(Tool!U$14:U$147,MATCH($B35,Tool!$B$14:$B$147,0),1)<>"",INDEX(Tool!U$14:U$147,MATCH($B35,Tool!$B$14:$B$147,0),1),"") -> Ad hoc project- but not in conflict with sector plan | G35: =IF(INDEX(Tool!V$14:V$147,MATCH($B35,Tool!$B$14:$B$147,0),1)<>"",INDEX(Tool!V$14:V$147,MATCH($B35,Tool!$B$14:$B$147,0),1),"") -> Ad hoc project- but in line with sector plan | H35: =IF(INDEX(Tool!W$14:W$147,MATCH($B35,Tool!$B$14:$B$147,0),1)<>"",INDEX(Tool!W$14:W$147,MATCH($B35,Tool!$B$14:$B$147,0),1),"") -> Part of sector plan | I35: =IF(INDEX(Tool!X$14:X$147,MATCH($B35,Tool!$B$14:$B$147,0),1)<>"",INDEX(Tool!X$14:X$147,MATCH($B35,Tool!$B$14:$B$147,0),1),"") -> Forms integral part of sector plan | K35: =IF(INDEX(Tool!F$14:F$147,MATCH($B35,Tool!$B$14:$B$147,0),1)<>"",INDEX(Tool!F$14:F$147,MATCH($B35,Tool!$B$14:$B$147,0),1),"") -> 50%
B36: =MAX(B$6:B35)+1 -> 24 | C36: =INDEX(Tool!C$14:C$147,MATCH($B36,Tool!$B$14:$B$147,0),1) -> Is the development of this project a prerequisite to other potential projects? | E36: =IF(INDEX(Tool!T$14:T$147,MATCH($B36,Tool!$B$14:$B$147,0),1)<>"",INDEX(Tool!T$14:T$147,MATCH($B36,Tool!$B$14:$B$147,0),1),"") -> Prevents the development of further projects | F36: =IF(INDEX(Tool!U$14:U$147,MATCH($B36,Tool!$B$14:$B$147,0),1)<>"",INDEX(Tool!U$14:U$147,MATCH($B36,Tool!$B$14:$B$147,0),1),"") -> Detrimental to the feasibility of other projects | G36: =IF(INDEX(Tool!V$14:V$147,MATCH($B36,Tool!$B$14:$B$147,0),1)<>"",INDEX(Tool!V$14:V$147,MATCH($B36,Tool!$B$14:$B$147,0),1),"") -> Does not affect the feasibility of other projects | H36: =IF(INDEX(Tool!W$14:W$147,MATCH($B36,Tool!$B$14:$B$147,0),1)<>"",INDEX(Tool!W$14:W$147,MATCH($B36,Tool!$B$14:$B$147,0),1),"") -> Important to development | I36: =IF(INDEX(Tool!X$14:X$147,MATCH($B36,Tool!$B$14:$B$147,0),1)<>"",INDEX(Tool!X$14:X$147,MATCH($B36,Tool!$B$14:$B$147,0),1),"") -> Yes-central to development | K36: =IF(INDEX(Tool!F$14:F$147,MATCH($B36,Tool!$B$14:$B$147,0),1)<>"",INDEX(Tool!F$14:F$147,MATCH($B36,Tool!$B$14:$B$147,0),1),"") -> 25%
B37: =MAX(B$6:B36)+1 -> 25 | C37: =INDEX(Tool!C$14:C$147,MATCH($B37,Tool!$B$14:$B$147,0),1) -> What is the potential impact on export earnings | E37: =IF(INDEX(Tool!T$14:T$147,MATCH($B37,Tool!$B$14:$B$147,0),1)<>"",INDEX(Tool!T$14:T$147,MATCH($B37,Tool!$B$14:$B$147,0),1),"") -> Major negative overseas trade and/or tourism impact | F37: =IF(INDEX(Tool!U$14:U$147,MATCH($B37,Tool!$B$14:$B$147,0),1)<>"",INDEX(Tool!U$14:U$147,MATCH($B37,Tool!$B$14:$B$147,0),1),"") -> Limited negative overseas trade and/or tourism impact | G37: =IF(INDEX(Tool!V$14:V$147,MATCH($B37,Tool!$B$14:$B$147,0),1)<>"",INDEX(Tool!V$14:V$147,MATCH($B37,Tool!$B$14:$B$147,0),1),"") -> No positive or negative overseas trade and/or tourism impact | H37: =IF(INDEX(Tool!W$14:W$147,MATCH($B37,Tool!$B$14:$B$147,0),1)<>"",INDEX(Tool!W$14:W$147,MATCH($B37,Tool!$B$14:$B$147,0),1),"") -> Limited positive overseas trade and/or tourism impact | I37: =IF(INDEX(Tool!X$14:X$147,MATCH($B37,Tool!$B$14:$B$147,0),1)<>"",INDEX(Tool!X$14:X$147,MATCH($B37,Tool!$B$14:$B$147,0),1),"") -> Major positive overseas trade and/or tourism impact | K37: =IF(INDEX(Tool!F$14:F$147,MATCH($B37,Tool!$B$14:$B$147,0),1)<>"",INDEX(Tool!F$14:F$147,MATCH($B37,Tool!$B$14:$B$147,0),1),"") -> 25%
B38: VI | C38: =INDEX(Tool!C$14:C$147,MATCH($B38,Tool!$B$14:$B$147,0),1) -> Land acquisition | E38: =IF(INDEX(Tool!T$14:T$147,MATCH($B38,Tool!$B$14:$B$147,0),1)<>"",INDEX(Tool!T$14:T$147,MATCH($B38,Tool!$B$14:$B$147,0),1),"") ->  | F38: =IF(INDEX(Tool!U$14:U$147,MATCH($B38,Tool!$B$14:$B$147,0),1)<>"",INDEX(Tool!U$14:U$147,MATCH($B38,Tool!$B$14:$B$147,0),1),"") ->  | G38: =IF(INDEX(Tool!V$14:V$147,MATCH($B38,Tool!$B$14:$B$147,0),1)<>"",INDEX(Tool!V$14:V$147,MATCH($B38,Tool!$B$14:$B$147,0),1),"") ->  | H38: =IF(INDEX(Tool!W$14:W$147,MATCH($B38,Tool!$B$14:$B$147,0),1)<>"",INDEX(Tool!W$14:W$147,MATCH($B38,Tool!$B$14:$B$147,0),1),"") ->  | I38: =IF(INDEX(Tool!X$14:X$147,MATCH($B38,Tool!$B$14:$B$147,0),1)<>"",INDEX(Tool!X$14:X$147,MATCH($B38,Tool!$B$14:$B$147,0),1),"") ->  | K38: =IF(INDEX(Tool!F$14:F$147,MATCH($B38,Tool!$B$14:$B$147,0),1)<>"",INDEX(Tool!F$14:F$147,MATCH($B38,Tool!$B$14:$B$147,0),1),"") -> 
B39: =MAX(B$6:B38)+1 -> 26 | C39: =INDEX(Tool!C$14:C$147,MATCH($B39,Tool!$B$14:$B$147,0),1) -> Will the PPP require land acquisition? | E39: =IF(INDEX(Tool!T$14:T$147,MATCH($B39,Tool!$B$14:$B$147,0),1)<>"",INDEX(Tool!T$14:T$147,MATCH($B39,Tool!$B$14:$B$147,0),1),"") -> Major land acquisition | F39: =IF(INDEX(Tool!U$14:U$147,MATCH($B39,Tool!$B$14:$B$147,0),1)<>"",INDEX(Tool!U$14:U$147,MATCH($B39,Tool!$B$14:$B$147,0),1),"") -> Significant land acquisition | G39: =IF(INDEX(Tool!V$14:V$147,MATCH($B39,Tool!$B$14:$B$147,0),1)<>"",INDEX(Tool!V$14:V$147,MATCH($B39,Tool!$B$14:$B$147,0),1),"") -> Some land acquisition | H39: =IF(INDEX(Tool!W$14:W$147,MATCH($B39,Tool!$B$14:$B$147,0),1)<>"",INDEX(Tool!W$14:W$147,MATCH($B39,Tool!$B$14:$B$147,0),1),"") -> Minor land acquisition | I39: =IF(INDEX(Tool!X$14:X$147,MATCH($B39,Tool!$B$14:$B$147,0),1)<>"",INDEX(Tool!X$14:X$147,MATCH($B39,Tool!$B$14:$B$147,0),1),"") -> No land acquisition | K39: =IF(INDEX(Tool!F$14:F$147,MATCH($B39,Tool!$B$14:$B$147,0),1)<>"",INDEX(Tool!F$14:F$147,MATCH($B39,Tool!$B$14:$B$147,0),1),"") -> 100%
B40: =MAX(B$6:B39)+1 -> 27 | C40: =INDEX(Tool!C$14:C$147,MATCH($B40,Tool!$B$14:$B$147,0),1) -> If land acquisition is required, will the public sector do this? | E40: =IF(INDEX(Tool!T$14:T$147,MATCH($B40,Tool!$B$14:$B$147,0),1)<>"",INDEX(Tool!T$14:T$147,MATCH($B40,Tool!$B$14:$B$147,0),1),"") -> Public sector will not acquire land | F40: =IF(INDEX(Tool!U$14:U$147,MATCH($B40,Tool!$B$14:$B$147,0),1)<>"",INDEX(Tool!U$14:U$147,MATCH($B40,Tool!$B$14:$B$147,0),1),"") -> Public sector will acquire some land before construction start | G40: =IF(INDEX(Tool!V$14:V$147,MATCH($B40,Tool!$B$14:$B$147,0),1)<>"",INDEX(Tool!V$14:V$147,MATCH($B40,Tool!$B$14:$B$147,0),1),"") -> Public sector will acquire land before construction start | H40: =IF(INDEX(Tool!W$14:W$147,MATCH($B40,Tool!$B$14:$B$147,0),1)<>"",INDEX(Tool!W$14:W$147,MATCH($B40,Tool!$B$14:$B$147,0),1),"") -> Public sector will acquire land before project tendered | I40: =IF(INDEX(Tool!X$14:X$147,MATCH($B40,Tool!$B$14:$B$147,0),1)<>"",INDEX(Tool!X$14:X$147,MATCH($B40,Tool!$B$14:$B$147,0),1),"") -> No land acquisition | K40: =IF(INDEX(Tool!F$14:F$147,MATCH($B40,Tool!$B$14:$B$147,0),1)<>"",INDEX(Tool!F$14:F$147,MATCH($B40,Tool!$B$14:$B$147,0),1),"") -> 100%
B41: VII | C41: =INDEX(Tool!C$14:C$147,MATCH($B41,Tool!$B$14:$B$147,0),1) -> Environmental and social impacts | E41: =IF(INDEX(Tool!T$14:T$147,MATCH($B41,Tool!$B$14:$B$147,0),1)<>"",INDEX(Tool!T$14:T$147,MATCH($B41,Tool!$B$14:$B$147,0),1),"") ->  | F41: =IF(INDEX(Tool!U$14:U$147,MATCH($B41,Tool!$B$14:$B$147,0),1)<>"",INDEX(Tool!U$14:U$147,MATCH($B41,Tool!$B$14:$B$147,0),1),"") ->  | G41: =IF(INDEX(Tool!V$14:V$147,MATCH($B41,Tool!$B$14:$B$147,0),1)<>"",INDEX(Tool!V$14:V$147,MATCH($B41,Tool!$B$14:$B$147,0),1),"") ->  | H41: =IF(INDEX(Tool!W$14:W$147,MATCH($B41,Tool!$B$14:$B$147,0),1)<>"",INDEX(Tool!W$14:W$147,MATCH($B41,Tool!$B$14:$B$147,0),1),"") ->  | I41: =IF(INDEX(Tool!X$14:X$147,MATCH($B41,Tool!$B$14:$B$147,0),1)<>"",INDEX(Tool!X$14:X$147,MATCH($B41,Tool!$B$14:$B$147,0),1),"") ->  | K41: =IF(INDEX(Tool!F$14:F$147,MATCH($B41,Tool!$B$14:$B$147,0),1)<>"",INDEX(Tool!F$14:F$147,MATCH($B41,Tool!$B$14:$B$147,0),1),"") -> 
B42: =MAX(B$6:B41)+1 -> 28 | C42: =INDEX(Tool!C$14:C$147,MATCH($B42,Tool!$B$14:$B$147,0),1) -> Will the PPP have significant negative environmental impacts? | E42: =IF(INDEX(Tool!T$14:T$147,MATCH($B42,Tool!$B$14:$B$147,0),1)<>"",INDEX(Tool!T$14:T$147,MATCH($B42,Tool!$B$14:$B$147,0),1),"") -> Major negative impacts | F42: =IF(INDEX(Tool!U$14:U$147,MATCH($B42,Tool!$B$14:$B$147,0),1)<>"",INDEX(Tool!U$14:U$147,MATCH($B42,Tool!$B$14:$B$147,0),1),"") -> Significant negative impacts | G42: =IF(INDEX(Tool!V$14:V$147,MATCH($B42,Tool!$B$14:$B$147,0),1)<>"",INDEX(Tool!V$14:V$147,MATCH($B42,Tool!$B$14:$B$147,0),1),"") -> Some negative impacts | H42: =IF(INDEX(Tool!W$14:W$147,MATCH($B42,Tool!$B$14:$B$147,0),1)<>"",INDEX(Tool!W$14:W$147,MATCH($B42,Tool!$B$14:$B$147,0),1),"") -> Minimal negative impacts | I42: =IF(INDEX(Tool!X$14:X$147,MATCH($B42,Tool!$B$14:$B$147,0),1)<>"",INDEX(Tool!X$14:X$147,MATCH($B42,Tool!$B$14:$B$147,0),1),"") -> No negative impacts | K42: =IF(INDEX(Tool!F$14:F$147,MATCH($B42,Tool!$B$14:$B$147,0),1)<>"",INDEX(Tool!F$14:F$147,MATCH($B42,Tool!$B$14:$B$147,0),1),"") -> 100%
B43: =MAX(B$6:B42)+1 -> 29 | C43: =INDEX(Tool!C$14:C$147,MATCH($B43,Tool!$B$14:$B$147,0),1) -> Will the PPP have significant negative social impacts, including resettlement of houses, businesses etc. | E43: =IF(INDEX(Tool!T$14:T$147,MATCH($B43,Tool!$B$14:$B$147,0),1)<>"",INDEX(Tool!T$14:T$147,MATCH($B43,Tool!$B$14:$B$147,0),1),"") -> Major negative impacts | F43: =IF(INDEX(Tool!U$14:U$147,MATCH($B43,Tool!$B$14:$B$147,0),1)<>"",INDEX(Tool!U$14:U$147,MATCH($B43,Tool!$B$14:$B$147,0),1),"") -> Significant negative impacts | G43: =IF(INDEX(Tool!V$14:V$147,MATCH($B43,Tool!$B$14:$B$147,0),1)<>"",INDEX(Tool!V$14:V$147,MATCH($B43,Tool!$B$14:$B$147,0),1),"") -> Some negative impacts | H43: =IF(INDEX(Tool!W$14:W$147,MATCH($B43,Tool!$B$14:$B$147,0),1)<>"",INDEX(Tool!W$14:W$147,MATCH($B43,Tool!$B$14:$B$147,0),1),"") -> Minimal negative impacts | I43: =IF(INDEX(Tool!X$14:X$147,MATCH($B43,Tool!$B$14:$B$147,0),1)<>"",INDEX(Tool!X$14:X$147,MATCH($B43,Tool!$B$14:$B$147,0),1),"") -> No negative impacts | K43: =IF(INDEX(Tool!F$14:F$147,MATCH($B43,Tool!$B$14:$B$147,0),1)<>"",INDEX(Tool!F$14:F$147,MATCH($B43,Tool!$B$14:$B$147,0),1),"") -> 100%
B44: VIII | C44: =INDEX(Tool!C$14:C$147,MATCH($B44,Tool!$B$14:$B$147,0),1) -> Labour and employment | E44: =IF(INDEX(Tool!T$14:T$147,MATCH($B44,Tool!$B$14:$B$147,0),1)<>"",INDEX(Tool!T$14:T$147,MATCH($B44,Tool!$B$14:$B$147,0),1),"") ->  | F44: =IF(INDEX(Tool!U$14:U$147,MATCH($B44,Tool!$B$14:$B$147,0),1)<>"",INDEX(Tool!U$14:U$147,MATCH($B44,Tool!$B$14:$B$147,0),1),"") ->  | G44: =IF(INDEX(Tool!V$14:V$147,MATCH($B44,Tool!$B$14:$B$147,0),1)<>"",INDEX(Tool!V$14:V$147,MATCH($B44,Tool!$B$14:$B$147,0),1),"") ->  | H44: =IF(INDEX(Tool!W$14:W$147,MATCH($B44,Tool!$B$14:$B$147,0),1)<>"",INDEX(Tool!W$14:W$147,MATCH($B44,Tool!$B$14:$B$147,0),1),"") ->  | I44: =IF(INDEX(Tool!X$14:X$147,MATCH($B44,Tool!$B$14:$B$147,0),1)<>"",INDEX(Tool!X$14:X$147,MATCH($B44,Tool!$B$14:$B$147,0),1),"") ->  | K44: =IF(INDEX(Tool!F$14:F$147,MATCH($B44,Tool!$B$14:$B$147,0),1)<>"",INDEX(Tool!F$14:F$147,MATCH($B44,Tool!$B$14:$B$147,0),1),"") -> 
B45: =MAX(B$6:B44)+1 -> 30 | C45: =INDEX(Tool!C$14:C$147,MATCH($B45,Tool!$B$14:$B$147,0),1) -> Will a significant transfer of employees take place under the PPP? | E45: =IF(INDEX(Tool!T$14:T$147,MATCH($B45,Tool!$B$14:$B$147,0),1)<>"",INDEX(Tool!T$14:T$147,MATCH($B45,Tool!$B$14:$B$147,0),1),"") -> Very large numbers (>25%) transferred | F45: =IF(INDEX(Tool!U$14:U$147,MATCH($B45,Tool!$B$14:$B$147,0),1)<>"",INDEX(Tool!U$14:U$147,MATCH($B45,Tool!$B$14:$B$147,0),1),"") -> Large numbers (15-25%) transferred | G45: =IF(INDEX(Tool!V$14:V$147,MATCH($B45,Tool!$B$14:$B$147,0),1)<>"",INDEX(Tool!V$14:V$147,MATCH($B45,Tool!$B$14:$B$147,0),1),"") -> Significant numbers (5-15%) transferred | H45: =IF(INDEX(Tool!W$14:W$147,MATCH($B45,Tool!$B$14:$B$147,0),1)<>"",INDEX(Tool!W$14:W$147,MATCH($B45,Tool!$B$14:$B$147,0),1),"") -> Moderate numbers (2-5%) transferred | I45: =IF(INDEX(Tool!X$14:X$147,MATCH($B45,Tool!$B$14:$B$147,0),1)<>"",INDEX(Tool!X$14:X$147,MATCH($B45,Tool!$B$14:$B$147,0),1),"") -> Insignificant numbers (<2%) transferred | K45: =IF(INDEX(Tool!F$14:F$147,MATCH($B45,Tool!$B$14:$B$147,0),1)<>"",INDEX(Tool!F$14:F$147,MATCH($B45,Tool!$B$14:$B$147,0),1),"") -> 50%
B46: =MAX(B$6:B45)+1 -> 31 | C46: =INDEX(Tool!C$14:C$147,MATCH($B46,Tool!$B$14:$B$147,0),1) -> Have there been successful transfers under previous PPPs? | E46: =IF(INDEX(Tool!T$14:T$147,MATCH($B46,Tool!$B$14:$B$147,0),1)<>"",INDEX(Tool!T$14:T$147,MATCH($B46,Tool!$B$14:$B$147,0),1),"") -> No previous transfers | F46: =IF(INDEX(Tool!U$14:U$147,MATCH($B46,Tool!$B$14:$B$147,0),1)<>"",INDEX(Tool!U$14:U$147,MATCH($B46,Tool!$B$14:$B$147,0),1),"") -> Most past transfers have been unsuccessful | G46: =IF(INDEX(Tool!V$14:V$147,MATCH($B46,Tool!$B$14:$B$147,0),1)<>"",INDEX(Tool!V$14:V$147,MATCH($B46,Tool!$B$14:$B$147,0),1),"") -> Past transfers have had mixed results | H46: =IF(INDEX(Tool!W$14:W$147,MATCH($B46,Tool!$B$14:$B$147,0),1)<>"",INDEX(Tool!W$14:W$147,MATCH($B46,Tool!$B$14:$B$147,0),1),"") -> Most past transfers have been successful | I46: =IF(INDEX(Tool!X$14:X$147,MATCH($B46,Tool!$B$14:$B$147,0),1)<>"",INDEX(Tool!X$14:X$147,MATCH($B46,Tool!$B$14:$B$147,0),1),"") -> No significant transfers required OR successful past transfers completed | K46: =IF(INDEX(Tool!F$14:F$147,MATCH($B46,Tool!$B$14:$B$147,0),1)<>"",INDEX(Tool!F$14:F$147,MATCH($B46,Tool!$B$14:$B$147,0),1),"") -> 25%
B47: =MAX(B$6:B46)+1 -> 32 | C47: =INDEX(Tool!C$14:C$147,MATCH($B47,Tool!$B$14:$B$147,0),1) -> Is the project likely to result in job losses or create new jobs? | E47: =IF(INDEX(Tool!T$14:T$147,MATCH($B47,Tool!$B$14:$B$147,0),1)<>"",INDEX(Tool!T$14:T$147,MATCH($B47,Tool!$B$14:$B$147,0),1),"") -> Significant job losses likely (>10% of existing workforce) | F47: =IF(INDEX(Tool!U$14:U$147,MATCH($B47,Tool!$B$14:$B$147,0),1)<>"",INDEX(Tool!U$14:U$147,MATCH($B47,Tool!$B$14:$B$147,0),1),"") -> Some job losses likely (<10% of existing workforce) | G47: =IF(INDEX(Tool!V$14:V$147,MATCH($B47,Tool!$B$14:$B$147,0),1)<>"",INDEX(Tool!V$14:V$147,MATCH($B47,Tool!$B$14:$B$147,0),1),"") -> No job losses are expected | H47: =IF(INDEX(Tool!W$14:W$147,MATCH($B47,Tool!$B$14:$B$147,0),1)<>"",INDEX(Tool!W$14:W$147,MATCH($B47,Tool!$B$14:$B$147,0),1),"") -> The project is expected to create a few new jobs | I47: =IF(INDEX(Tool!X$14:X$147,MATCH($B47,Tool!$B$14:$B$147,0),1)<>"",INDEX(Tool!X$14:X$147,MATCH($B47,Tool!$B$14:$B$147,0),1),"") -> The project is expected to create many new jobs | K47: =IF(INDEX(Tool!F$14:F$147,MATCH($B47,Tool!$B$14:$B$147,0),1)<>"",INDEX(Tool!F$14:F$147,MATCH($B47,Tool!$B$14:$B$147,0),1),"") -> 50%
B48: =MAX(B$6:B47)+1 -> 33 | C48: =INDEX(Tool!C$14:C$147,MATCH($B48,Tool!$B$14:$B$147,0),1) -> What proportion of the project works, goods, and services will be acquired locally? | E48: =IF(INDEX(Tool!T$14:T$147,MATCH($B48,Tool!$B$14:$B$147,0),1)<>"",INDEX(Tool!T$14:T$147,MATCH($B48,Tool!$B$14:$B$147,0),1),"") -> Insignificant proportion (< 10%) | F48: =IF(INDEX(Tool!U$14:U$147,MATCH($B48,Tool!$B$14:$B$147,0),1)<>"",INDEX(Tool!U$14:U$147,MATCH($B48,Tool!$B$14:$B$147,0),1),"") -> Moderate proportion (10 - 30%) | G48: =IF(INDEX(Tool!V$14:V$147,MATCH($B48,Tool!$B$14:$B$147,0),1)<>"",INDEX(Tool!V$14:V$147,MATCH($B48,Tool!$B$14:$B$147,0),1),"") -> Significant proportion (30 - 50%) | H48: =IF(INDEX(Tool!W$14:W$147,MATCH($B48,Tool!$B$14:$B$147,0),1)<>"",INDEX(Tool!W$14:W$147,MATCH($B48,Tool!$B$14:$B$147,0),1),"") -> Large proportion (50 - 80%) | I48: =IF(INDEX(Tool!X$14:X$147,MATCH($B48,Tool!$B$14:$B$147,0),1)<>"",INDEX(Tool!X$14:X$147,MATCH($B48,Tool!$B$14:$B$147,0),1),"") -> Very large proportion (> 80%) | K48: =IF(INDEX(Tool!F$14:F$147,MATCH($B48,Tool!$B$14:$B$147,0),1)<>"",INDEX(Tool!F$14:F$147,MATCH($B48,Tool!$B$14:$B$147,0),1),"") -> 50%
B49: IX | C49: =INDEX(Tool!C$14:C$147,MATCH($B49,Tool!$B$14:$B$147,0),1) -> Demand and payment risk | E49: =IF(INDEX(Tool!T$14:T$147,MATCH($B49,Tool!$B$14:$B$147,0),1)<>"",INDEX(Tool!T$14:T$147,MATCH($B49,Tool!$B$14:$B$147,0),1),"") ->  | F49: =IF(INDEX(Tool!U$14:U$147,MATCH($B49,Tool!$B$14:$B$147,0),1)<>"",INDEX(Tool!U$14:U$147,MATCH($B49,Tool!$B$14:$B$147,0),1),"") ->  | G49: =IF(INDEX(Tool!V$14:V$147,MATCH($B49,Tool!$B$14:$B$147,0),1)<>"",INDEX(Tool!V$14:V$147,MATCH($B49,Tool!$B$14:$B$147,0),1),"") ->  | H49: =IF(INDEX(Tool!W$14:W$147,MATCH($B49,Tool!$B$14:$B$147,0),1)<>"",INDEX(Tool!W$14:W$147,MATCH($B49,Tool!$B$14:$B$147,0),1),"") ->  | I49: =IF(INDEX(Tool!X$14:X$147,MATCH($B49,Tool!$B$14:$B$147,0),1)<>"",INDEX(Tool!X$14:X$147,MATCH($B49,Tool!$B$14:$B$147,0),1),"") ->  | K49: =IF(INDEX(Tool!F$14:F$147,MATCH($B49,Tool!$B$14:$B$147,0),1)<>"",INDEX(Tool!F$14:F$147,MATCH($B49,Tool!$B$14:$B$147,0),1),"") -> 
B50: =MAX(B$6:B49)+1 -> 34 | C50: =INDEX(Tool!C$14:C$147,MATCH($B50,Tool!$B$14:$B$147,0),1) -> What is the main revenue source for the project? | E50: =IF(INDEX(Tool!T$14:T$147,MATCH($B50,Tool!$B$14:$B$147,0),1)<>"",INDEX(Tool!T$14:T$147,MATCH($B50,Tool!$B$14:$B$147,0),1),"") -> As yet unknown | F50: =IF(INDEX(Tool!U$14:U$147,MATCH($B50,Tool!$B$14:$B$147,0),1)<>"",INDEX(Tool!U$14:U$147,MATCH($B50,Tool!$B$14:$B$147,0),1),"") -> Other | G50: =IF(INDEX(Tool!V$14:V$147,MATCH($B50,Tool!$B$14:$B$147,0),1)<>"",INDEX(Tool!V$14:V$147,MATCH($B50,Tool!$B$14:$B$147,0),1),"") -> Charges (user pays) | H50: =IF(INDEX(Tool!W$14:W$147,MATCH($B50,Tool!$B$14:$B$147,0),1)<>"",INDEX(Tool!W$14:W$147,MATCH($B50,Tool!$B$14:$B$147,0),1),"") -> Shadow charges (government pays) | I50: =IF(INDEX(Tool!X$14:X$147,MATCH($B50,Tool!$B$14:$B$147,0),1)<>"",INDEX(Tool!X$14:X$147,MATCH($B50,Tool!$B$14:$B$147,0),1),"") -> Annuity payments | K50: =IF(INDEX(Tool!F$14:F$147,MATCH($B50,Tool!$B$14:$B$147,0),1)<>"",INDEX(Tool!F$14:F$147,MATCH($B50,Tool!$B$14:$B$147,0),1),"") -> 75%
B51: =MAX(B$6:B50)+1 -> 35 | C51: =INDEX(Tool!C$14:C$147,MATCH($B51,Tool!$B$14:$B$147,0),1) -> How much demand risk is there? | E51: =IF(INDEX(Tool!T$14:T$147,MATCH($B51,Tool!$B$14:$B$147,0),1)<>"",INDEX(Tool!T$14:T$147,MATCH($B51,Tool!$B$14:$B$147,0),1),"") -> Very high demand risk | F51: =IF(INDEX(Tool!U$14:U$147,MATCH($B51,Tool!$B$14:$B$147,0),1)<>"",INDEX(Tool!U$14:U$147,MATCH($B51,Tool!$B$14:$B$147,0),1),"") -> High demand risk | G51: =IF(INDEX(Tool!V$14:V$147,MATCH($B51,Tool!$B$14:$B$147,0),1)<>"",INDEX(Tool!V$14:V$147,MATCH($B51,Tool!$B$14:$B$147,0),1),"") -> Moderate demand risk | H51: =IF(INDEX(Tool!W$14:W$147,MATCH($B51,Tool!$B$14:$B$147,0),1)<>"",INDEX(Tool!W$14:W$147,MATCH($B51,Tool!$B$14:$B$147,0),1),"") -> Low demand risk | I51: =IF(INDEX(Tool!X$14:X$147,MATCH($B51,Tool!$B$14:$B$147,0),1)<>"",INDEX(Tool!X$14:X$147,MATCH($B51,Tool!$B$14:$B$147,0),1),"") -> No demand risk | K51: =IF(INDEX(Tool!F$14:F$147,MATCH($B51,Tool!$B$14:$B$147,0),1)<>"",INDEX(Tool!F$14:F$147,MATCH($B51,Tool!$B$14:$B$147,0),1),"") -> 75%
B52: =MAX(B$6:B51)+1 -> 36 | C52: =INDEX(Tool!C$14:C$147,MATCH($B52,Tool!$B$14:$B$147,0),1) -> How are user charges (or shadow charges) set? | E52: =IF(INDEX(Tool!T$14:T$147,MATCH($B52,Tool!$B$14:$B$147,0),1)<>"",INDEX(Tool!T$14:T$147,MATCH($B52,Tool!$B$14:$B$147,0),1),"") -> Set by ministry / public enterprise using discretion | F52: =IF(INDEX(Tool!U$14:U$147,MATCH($B52,Tool!$B$14:$B$147,0),1)<>"",INDEX(Tool!U$14:U$147,MATCH($B52,Tool!$B$14:$B$147,0),1),"") -> Set by independent regulator using discretion | G52: =IF(INDEX(Tool!V$14:V$147,MATCH($B52,Tool!$B$14:$B$147,0),1)<>"",INDEX(Tool!V$14:V$147,MATCH($B52,Tool!$B$14:$B$147,0),1),"") -> Set by ministry / public enterprise using formula in contract | H52: =IF(INDEX(Tool!W$14:W$147,MATCH($B52,Tool!$B$14:$B$147,0),1)<>"",INDEX(Tool!W$14:W$147,MATCH($B52,Tool!$B$14:$B$147,0),1),"") -> Set by independent regulator using formula in contract | I52: =IF(INDEX(Tool!X$14:X$147,MATCH($B52,Tool!$B$14:$B$147,0),1)<>"",INDEX(Tool!X$14:X$147,MATCH($B52,Tool!$B$14:$B$147,0),1),"") -> Fixed for contract life OR no user charges payable | K52: =IF(INDEX(Tool!F$14:F$147,MATCH($B52,Tool!$B$14:$B$147,0),1)<>"",INDEX(Tool!F$14:F$147,MATCH($B52,Tool!$B$14:$B$147,0),1),"") -> 75%
B53: =MAX(B$6:B52)+1 -> 37 | C53: =INDEX(Tool!C$14:C$147,MATCH($B53,Tool!$B$14:$B$147,0),1) -> Are the entity's subsidies / annuity payments guaranteed by central government? | E53: =IF(INDEX(Tool!T$14:T$147,MATCH($B53,Tool!$B$14:$B$147,0),1)<>"",INDEX(Tool!T$14:T$147,MATCH($B53,Tool!$B$14:$B$147,0),1),"") -> No guarantee, very poor track record of paying subsidies / annuities | F53: =IF(INDEX(Tool!U$14:U$147,MATCH($B53,Tool!$B$14:$B$147,0),1)<>"",INDEX(Tool!U$14:U$147,MATCH($B53,Tool!$B$14:$B$147,0),1),"") -> No guarantee, unreliable track record of paying subsidies / annuities | G53: =IF(INDEX(Tool!V$14:V$147,MATCH($B53,Tool!$B$14:$B$147,0),1)<>"",INDEX(Tool!V$14:V$147,MATCH($B53,Tool!$B$14:$B$147,0),1),"") -> No guarantee, no previous requirement to pay subsidies / annuities | H53: =IF(INDEX(Tool!W$14:W$147,MATCH($B53,Tool!$B$14:$B$147,0),1)<>"",INDEX(Tool!W$14:W$147,MATCH($B53,Tool!$B$14:$B$147,0),1),"") -> No guarantee, good track record of paying subsidies / annuities | I53: =IF(INDEX(Tool!X$14:X$147,MATCH($B53,Tool!$B$14:$B$147,0),1)<>"",INDEX(Tool!X$14:X$147,MATCH($B53,Tool!$B$14:$B$147,0),1),"") -> No subsidies/annuities payable OR payment backed by a central government guarantee | K53: =IF(INDEX(Tool!F$14:F$147,MATCH($B53,Tool!$B$14:$B$147,0),1)<>"",INDEX(Tool!F$14:F$147,MATCH($B53,Tool!$B$14:$B$147,0),1),"") -> 75%
B54: X | C54: =INDEX(Tool!C$14:C$147,MATCH($B54,Tool!$B$14:$B$147,0),1) -> Commercial viability | E54: =IF(INDEX(Tool!T$14:T$147,MATCH($B54,Tool!$B$14:$B$147,0),1)<>"",INDEX(Tool!T$14:T$147,MATCH($B54,Tool!$B$14:$B$147,0),1),"") ->  | F54: =IF(INDEX(Tool!U$14:U$147,MATCH($B54,Tool!$B$14:$B$147,0),1)<>"",INDEX(Tool!U$14:U$147,MATCH($B54,Tool!$B$14:$B$147,0),1),"") ->  | G54: =IF(INDEX(Tool!V$14:V$147,MATCH($B54,Tool!$B$14:$B$147,0),1)<>"",INDEX(Tool!V$14:V$147,MATCH($B54,Tool!$B$14:$B$147,0),1),"") ->  | H54: =IF(INDEX(Tool!W$14:W$147,MATCH($B54,Tool!$B$14:$B$147,0),1)<>"",INDEX(Tool!W$14:W$147,MATCH($B54,Tool!$B$14:$B$147,0),1),"") ->  | I54: =IF(INDEX(Tool!X$14:X$147,MATCH($B54,Tool!$B$14:$B$147,0),1)<>"",INDEX(Tool!X$14:X$147,MATCH($B54,Tool!$B$14:$B$147,0),1),"") ->  | K54: =IF(INDEX(Tool!F$14:F$147,MATCH($B54,Tool!$B$14:$B$147,0),1)<>"",INDEX(Tool!F$14:F$147,MATCH($B54,Tool!$B$14:$B$147,0),1),"") -> 
B55: =MAX(B$6:B54)+1 -> 38 | C55: =INDEX(Tool!C$14:C$147,MATCH($B55,Tool!$B$14:$B$147,0),1) -> Is the financial viability of the project dependent on receiving a grant/subsidy? | E55: =IF(INDEX(Tool!T$14:T$147,MATCH($B55,Tool!$B$14:$B$147,0),1)<>"",INDEX(Tool!T$14:T$147,MATCH($B55,Tool!$B$14:$B$147,0),1),"") -> Completely | F55: =IF(INDEX(Tool!U$14:U$147,MATCH($B55,Tool!$B$14:$B$147,0),1)<>"",INDEX(Tool!U$14:U$147,MATCH($B55,Tool!$B$14:$B$147,0),1),"") -> Likely | G55: =IF(INDEX(Tool!V$14:V$147,MATCH($B55,Tool!$B$14:$B$147,0),1)<>"",INDEX(Tool!V$14:V$147,MATCH($B55,Tool!$B$14:$B$147,0),1),"") -> Somewhat | H55: =IF(INDEX(Tool!W$14:W$147,MATCH($B55,Tool!$B$14:$B$147,0),1)<>"",INDEX(Tool!W$14:W$147,MATCH($B55,Tool!$B$14:$B$147,0),1),"") -> Unlikely | I55: =IF(INDEX(Tool!X$14:X$147,MATCH($B55,Tool!$B$14:$B$147,0),1)<>"",INDEX(Tool!X$14:X$147,MATCH($B55,Tool!$B$14:$B$147,0),1),"") -> Not at all | K55: =IF(INDEX(Tool!F$14:F$147,MATCH($B55,Tool!$B$14:$B$147,0),1)<>"",INDEX(Tool!F$14:F$147,MATCH($B55,Tool!$B$14:$B$147,0),1),"") -> 100%
B56: =MAX(B$6:B55)+1 -> 39 | C56: =INDEX(Tool!C$14:C$147,MATCH($B56,Tool!$B$14:$B$147,0),1) -> How soon after the start of the project are positive cash flows expected to start | E56: =IF(INDEX(Tool!T$14:T$147,MATCH($B56,Tool!$B$14:$B$147,0),1)<>"",INDEX(Tool!T$14:T$147,MATCH($B56,Tool!$B$14:$B$147,0),1),"") -> 5 Years + | F56: =IF(INDEX(Tool!U$14:U$147,MATCH($B56,Tool!$B$14:$B$147,0),1)<>"",INDEX(Tool!U$14:U$147,MATCH($B56,Tool!$B$14:$B$147,0),1),"") -> 3-5 Years | G56: =IF(INDEX(Tool!V$14:V$147,MATCH($B56,Tool!$B$14:$B$147,0),1)<>"",INDEX(Tool!V$14:V$147,MATCH($B56,Tool!$B$14:$B$147,0),1),"") -> 2-3 Years | H56: =IF(INDEX(Tool!W$14:W$147,MATCH($B56,Tool!$B$14:$B$147,0),1)<>"",INDEX(Tool!W$14:W$147,MATCH($B56,Tool!$B$14:$B$147,0),1),"") -> 1-2 Years | I56: =IF(INDEX(Tool!X$14:X$147,MATCH($B56,Tool!$B$14:$B$147,0),1)<>"",INDEX(Tool!X$14:X$147,MATCH($B56,Tool!$B$14:$B$147,0),1),"") -> <1 Year | K56: =IF(INDEX(Tool!F$14:F$147,MATCH($B56,Tool!$B$14:$B$147,0),1)<>"",INDEX(Tool!F$14:F$147,MATCH($B56,Tool!$B$14:$B$147,0),1),"") -> 50%
B57: =MAX(B$6:B56)+1 -> 40 | C57: =INDEX(Tool!C$14:C$147,MATCH($B57,Tool!$B$14:$B$147,0),1) -> What overall level of risk is assumed by the private sector? | E57: =IF(INDEX(Tool!T$14:T$147,MATCH($B57,Tool!$B$14:$B$147,0),1)<>"",INDEX(Tool!T$14:T$147,MATCH($B57,Tool!$B$14:$B$147,0),1),"") -> High | F57: =IF(INDEX(Tool!U$14:U$147,MATCH($B57,Tool!$B$14:$B$147,0),1)<>"",INDEX(Tool!U$14:U$147,MATCH($B57,Tool!$B$14:$B$147,0),1),"") -> Moderate to high | G57: =IF(INDEX(Tool!V$14:V$147,MATCH($B57,Tool!$B$14:$B$147,0),1)<>"",INDEX(Tool!V$14:V$147,MATCH($B57,Tool!$B$14:$B$147,0),1),"") -> Moderate | H57: =IF(INDEX(Tool!W$14:W$147,MATCH($B57,Tool!$B$14:$B$147,0),1)<>"",INDEX(Tool!W$14:W$147,MATCH($B57,Tool!$B$14:$B$147,0),1),"") -> Minimal to moderate | I57: =IF(INDEX(Tool!X$14:X$147,MATCH($B57,Tool!$B$14:$B$147,0),1)<>"",INDEX(Tool!X$14:X$147,MATCH($B57,Tool!$B$14:$B$147,0),1),"") -> Minimal | K57: =IF(INDEX(Tool!F$14:F$147,MATCH($B57,Tool!$B$14:$B$147,0),1)<>"",INDEX(Tool!F$14:F$147,MATCH($B57,Tool!$B$14:$B$147,0),1),"") -> 75%
B58: XI | C58: =INDEX(Tool!C$14:C$147,MATCH($B58,Tool!$B$14:$B$147,0),1) -> Level of project preparation | E58: =IF(INDEX(Tool!T$14:T$147,MATCH($B58,Tool!$B$14:$B$147,0),1)<>"",INDEX(Tool!T$14:T$147,MATCH($B58,Tool!$B$14:$B$147,0),1),"") ->  | F58: =IF(INDEX(Tool!U$14:U$147,MATCH($B58,Tool!$B$14:$B$147,0),1)<>"",INDEX(Tool!U$14:U$147,MATCH($B58,Tool!$B$14:$B$147,0),1),"") ->  | G58: =IF(INDEX(Tool!V$14:V$147,MATCH($B58,Tool!$B$14:$B$147,0),1)<>"",INDEX(Tool!V$14:V$147,MATCH($B58,Tool!$B$14:$B$147,0),1),"") ->  | H58: =IF(INDEX(Tool!W$14:W$147,MATCH($B58,Tool!$B$14:$B$147,0),1)<>"",INDEX(Tool!W$14:W$147,MATCH($B58,Tool!$B$14:$B$147,0),1),"") ->  | I58: =IF(INDEX(Tool!X$14:X$147,MATCH($B58,Tool!$B$14:$B$147,0),1)<>"",INDEX(Tool!X$14:X$147,MATCH($B58,Tool!$B$14:$B$147,0),1),"") ->  | K58: =IF(INDEX(Tool!F$14:F$147,MATCH($B58,Tool!$B$14:$B$147,0),1)<>"",INDEX(Tool!F$14:F$147,MATCH($B58,Tool!$B$14:$B$147,0),1),"") -> 
B59: =MAX(B$6:B58)+1 -> 41 | C59: =INDEX(Tool!C$14:C$147,MATCH($B59,Tool!$B$14:$B$147,0),1) -> To what level has the project been prepared already? | E59: =IF(INDEX(Tool!T$14:T$147,MATCH($B59,Tool!$B$14:$B$147,0),1)<>"",INDEX(Tool!T$14:T$147,MATCH($B59,Tool!$B$14:$B$147,0),1),"") -> Very basic project concept only | F59: =IF(INDEX(Tool!U$14:U$147,MATCH($B59,Tool!$B$14:$B$147,0),1)<>"",INDEX(Tool!U$14:U$147,MATCH($B59,Tool!$B$14:$B$147,0),1),"") -> Project concept currently under preparation | G59: =IF(INDEX(Tool!V$14:V$147,MATCH($B59,Tool!$B$14:$B$147,0),1)<>"",INDEX(Tool!V$14:V$147,MATCH($B59,Tool!$B$14:$B$147,0),1),"") -> Project concept clearly defined, including needs and benefit assessment | H59: =IF(INDEX(Tool!W$14:W$147,MATCH($B59,Tool!$B$14:$B$147,0),1)<>"",INDEX(Tool!W$14:W$147,MATCH($B59,Tool!$B$14:$B$147,0),1),"") -> Pre-feasibility study completed | I59: =IF(INDEX(Tool!X$14:X$147,MATCH($B59,Tool!$B$14:$B$147,0),1)<>"",INDEX(Tool!X$14:X$147,MATCH($B59,Tool!$B$14:$B$147,0),1),"") -> Feasibility study completed | K59: =IF(INDEX(Tool!F$14:F$147,MATCH($B59,Tool!$B$14:$B$147,0),1)<>"",INDEX(Tool!F$14:F$147,MATCH($B59,Tool!$B$14:$B$147,0),1),"") -> 50%
B60: =MAX(B$6:B59)+1 -> 42 | C60: =INDEX(Tool!C$14:C$147,MATCH($B60,Tool!$B$14:$B$147,0),1) -> Is there sufficient data to allow project preparation? | E60: =IF(INDEX(Tool!T$14:T$147,MATCH($B60,Tool!$B$14:$B$147,0),1)<>"",INDEX(Tool!T$14:T$147,MATCH($B60,Tool!$B$14:$B$147,0),1),"") -> None | F60: =IF(INDEX(Tool!U$14:U$147,MATCH($B60,Tool!$B$14:$B$147,0),1)<>"",INDEX(Tool!U$14:U$147,MATCH($B60,Tool!$B$14:$B$147,0),1),"") -> Little | G60: =IF(INDEX(Tool!V$14:V$147,MATCH($B60,Tool!$B$14:$B$147,0),1)<>"",INDEX(Tool!V$14:V$147,MATCH($B60,Tool!$B$14:$B$147,0),1),"") -> Some | H60: =IF(INDEX(Tool!W$14:W$147,MATCH($B60,Tool!$B$14:$B$147,0),1)<>"",INDEX(Tool!W$14:W$147,MATCH($B60,Tool!$B$14:$B$147,0),1),"") -> Most | I60: =IF(INDEX(Tool!X$14:X$147,MATCH($B60,Tool!$B$14:$B$147,0),1)<>"",INDEX(Tool!X$14:X$147,MATCH($B60,Tool!$B$14:$B$147,0),1),"") -> All data available | K60: =IF(INDEX(Tool!F$14:F$147,MATCH($B60,Tool!$B$14:$B$147,0),1)<>"",INDEX(Tool!F$14:F$147,MATCH($B60,Tool!$B$14:$B$147,0),1),"") -> 50%
B61: =MAX(B$6:B60)+1 -> 43 | C61: =INDEX(Tool!C$14:C$147,MATCH($B61,Tool!$B$14:$B$147,0),1) -> Have similar past projects been implemented by the government as PPPs? | E61: =IF(INDEX(Tool!T$14:T$147,MATCH($B61,Tool!$B$14:$B$147,0),1)<>"",INDEX(Tool!T$14:T$147,MATCH($B61,Tool!$B$14:$B$147,0),1),"") -> No previous experience and no standard documents | F61: =IF(INDEX(Tool!U$14:U$147,MATCH($B61,Tool!$B$14:$B$147,0),1)<>"",INDEX(Tool!U$14:U$147,MATCH($B61,Tool!$B$14:$B$147,0),1),"") -> Previous dissimilar projects with no standard documents | G61: =IF(INDEX(Tool!V$14:V$147,MATCH($B61,Tool!$B$14:$B$147,0),1)<>"",INDEX(Tool!V$14:V$147,MATCH($B61,Tool!$B$14:$B$147,0),1),"") -> Previous dissimilar projects but standard documents prepared | H61: =IF(INDEX(Tool!W$14:W$147,MATCH($B61,Tool!$B$14:$B$147,0),1)<>"",INDEX(Tool!W$14:W$147,MATCH($B61,Tool!$B$14:$B$147,0),1),"") -> Similar projects previously tendered | I61: =IF(INDEX(Tool!X$14:X$147,MATCH($B61,Tool!$B$14:$B$147,0),1)<>"",INDEX(Tool!X$14:X$147,MATCH($B61,Tool!$B$14:$B$147,0),1),"") -> Similar projects previously tendered using standard documents | K61: =IF(INDEX(Tool!F$14:F$147,MATCH($B61,Tool!$B$14:$B$147,0),1)<>"",INDEX(Tool!F$14:F$147,MATCH($B61,Tool!$B$14:$B$147,0),1),"") -> 50%
C62: Total weighted score | L62: =IF(SUM(L6:L61)>0,SUM(L6:L61),"") -> 
C63: Max possible weighted score | L63: =SUM(K6:K61)*I5 -> 145
C64: Final score (as % of max) | L64: =IF(L62<>"",L62/L63,"") -> 
C65: Suitability rating: | L65: Tick below
C66: Very difficult | J66: Final score >= | K66: =Tool!F209 -> 0% | L66: =IF(AND($L$64>=K66,$L$64<K67),C66,"") -> 
C67: Difficult | J67: Final score >= | K67: =Tool!F210 -> 20% | L67: =IF(AND($L$64>=K67,$L$64<K68),C67,"") -> 
C68: Possible | J68: Final score >= | K68: =Tool!F211 -> 40% | L68: =IF(AND($L$64>=K68,$L$64<K69),C68,"") -> 
C69: Attractive | J69: Final score >= | K69: =Tool!F212 -> 60% | L69: =IF(AND($L$64>=K69,$L$64<K70),C69,"") -> 
C70: Very attractive | J70: Final score >= | K70: =Tool!F213 -> 80% | L70: =IF(AND($L$64>=K70,$L$64<=1),C70,"") -> 
